Workbook

Sheet Instructions
B2: RHI HEAT LOSS ASSESSMENT TOOL
B4: Version: | C4: 2.2 | D4: Released: | E4: 2015-12-01
B6: Please note that this spreadsheet should be saved as a 'Macro-enabled' workbook ('.xlsm')
C7: [File > Save As > Excel Macro-Enabled Workbook]
B10: 1) Complete the 'Above Ground Pipework' tab to see if 'above ground' pipe lengths may be considered 'properly Insulated'.
B11: 2) Complete the 'Buried Pipework' tab to see if buried pipe lengths may be considered 'properly insulated'.
B12: 3) Complete the 'PI Calculator' for any pipe lengths that have been confirmed as 'properly insulated' and are greater than 10 metres in length.
B14: 4) Complete the 'Non PI Calculator' for any pipe lengths that may not be considered 'properly insulated'.
B15: 5) Complete the 'Storage Tanks' calculator for any external tanks for which heat losses need to be accounted for.
B16: 6) View the 'Results' tab to see what values should be entered on your RHI application form.
B17: For further assistance with completing the Heat Loss Assessment (HLA), please see the 'Heat Loss Assessment Guidance'.
B18: Please email a copy of the completed Heat Loss Assessment in Excel format to: | H18: RHI.heatloss@ofgem.gov.uk

Sheet Above Ground Pipework
A12: Key:
B13: Answer to be selected from a 'drop down' menu
B14: Answer to be typed into box
B15: Automatic calculation (PASS)
B16: Automatic calculation (FAIL)
A21: STEP 1: | C21: Complete Question 1 for each individual length of external pipework located 'above ground'. | AA21: Yes
A22: STEP 2: | C22: Complete the table in Question 2 with details of all external pipe lengths located 'above ground' using the results from Question 1. | AA22: No
A23: STEP 3: | C23: Each length of 'above ground' external pipework that may be considered 'properly insulated' in accordance with Question 1 and is > 10m in length must be added to the PI Calculator.
A25: STEP 4: | C25: Each length of 'above ground' external pipework that cannot be considered 'properly insulated' in accordance with Question 1 must be added to the Non PI Calculator.
A27: Question 1: 'Properly Insulated' Test for 'above ground' external pipework
AA28: Metal
AA29: Plastic
AA30: Other
AA31: Buried
A32: b | C32: If piping is 'buried' is it 'pre-insulated'? | E32: Pre-insulated' piping would be supplied by the manufacturer with the insulation already attached to the piping | AA32: Above Ground
A33: a | C33: Pipe material:
A34: b | C34: Average temperature of fluid running through pipes (or hot face temperature of process pipework) (deg C):
A35: c | C35: Pipe diameter (mm), excluding any insulation: | E35: This is the diameter of the pipe carrying the liquid, not the outside diameter of the insulation. | AA35: ≤ 95ºC
A36: d | C36: Is the pipe diameter entered above the nominal or outside measurement? | E36: 'nominal' = diameter on the inside of the pipe 'outside' = diamater on the outside of the pipe | AA36: 96 - 120ºC
A37: e | C37: Use the manufacturer heat loss declaration instead of specifying insulation properties? | E37: This figure in W/m must be confirmed by the technical data sheet for your insulated pipework. | AA37: 121 - 150ºC
A38: f | C38: The heat loss rate for the pipework (W/m) defined in the manufacturer declaration: | E38: Must be in units of W/m length of pipe.
A39: g | C39: Insulation thickness (mm): | E39: From the outside of the pipe carrying the liquid, to the edge of the insulated pipe | AA39: Nominal
A40: h | C40: Thermal conductivity of the insulation (W/m per deg K): | E40: Must be in units of W/m K ['Watt per metre per Kelvin'] | AA40: Outside
A41: i | C41: What is the surface finish of the insulation? | E41: A polished, shiny or white surface has low emissivity; otherwise select high emissivity.
A42: j | C42: Using the above evidence that you have provided the adjacent cell should provide you with an answer as to whether Ofgem will/ won't accept your insulation as being 'properly insulated'. | D42: =IF(AND(D38="",D40=""),"",IF(D37="Yes",IF(D38="","FAIL",IF(D38<='BS5422'!AF35,"PASS","FAIL")),IF(D40="","FAIL",IF(D39>='BS5422'!AF34,"PASS","FAIL")))) ->  | AA42: High emissivity
A43: l | C43: Pictorial evidence of whether the piping is 'above ground' or 'buried'. This should include if possible a photo of the piping in place (if installed prior to the RHI application), or being installed and or (if possible) a cross section of the pipe. | D43: See notes at top of page for details on how to submit this information. | E43: You may be requested to submit more evidence in the following questions; if using the 'email' option this should all be attached and sent in one email with the specific RHI ORG number in the subject line. | AA43: Low emissivity
A44: m | C44: A copy of the relevant page of the insulation manufacturer 's specification which details the insulation's thickness and associated conductivity. | D44: See notes at top of page for details on how to submit this information. | E44: You may be requested to submit more evidence in the following questions; if using the 'email' option this should all be attached and sent in one email with the specific RHI ORG number in the subject line.
AA45: 0.025
AA46: 0.03
AA47: 0.035
A48: Question 2: Details of all 'above ground' external pipe lengths | AA48: 0.04
AA49: 0.045
D50: 1 | E50: 2 | F50: 3 | G50: 4 | H50: 5 | I50: 6 | J50: 7 | K50: 8 | L50: 9 | M50: 10
C51: Description of pipe to enable it to be identified on schematic: | AA51: 0.05
C52: Pipe Length (m): | AA52: 0.055
A53: a | C53: Pipe material:
A54: b | C54: Average temperature of fluid running through the pipes (deg C):
A55: c | C55: Pipe diameter (mm), excluding any insulation:
A56: d | C56: Is the pipe diameter entered above the nominal or outside measurement?
A57: e | C57: Use the manufacturer heat loss declaration instead of specifying insulation properties?
A58: f | C58: The heat loss rate for the pipework (W/m) defined in the manufacturer declaration:
A59: g | C59: Insulation thickness (mm): | AA59: (i) No - All individual lengths of pipework <10m
A60: h | C60: Thermal conductivity of the insulation (W/m per deg K): | AA60: (ii) Yes - One or more individual lengths of pipework >10m
A61: i | C61: What is the surface finish of the insulation?
AA62: (ii) use a heat loss calculation
AA65: Yes
AA66: No
AA74: √
AA75: √ Physical constraints
AA76: √ Reasons of safety
AA77: √ Environmental conditions
AA78: √ Metering would provide less accurate results than a heat loss calculation.
AA80: Yes - (i) Physical constraints
AA81: Yes - (iii) Environmental conditions
AA82: Yes - (iv) Metering would provide less accurate results than a heat loss calculation
AA85: 0
AA86: 1
AA87: 2
AA88: 3
AA89: 4
AA90: 5
AA91: 7
A92: j | C92: Result of 'Properly Insulated' Test above? | AA92: 8
A93: k | C93: What should I do next? | D93: =IF(D92="","",IF(AND(D52>=10,D92="PASS"),"Add to PI Calculator",IF(AND(D52<10,D92="PASS"),"Disregarded",IF(D92="FAIL","Add to Non PI Calculator","")))) ->  | AA93: 9
AA94: 10
AA95: 11
D100: PASS
D101: FAIL | AA101: 13
D102: High emissivity
D103: Low emissivity | AA103: 14
AA104: 15
AA105: 16
AA106: 17
AA107: 18
AA108: 19
AA109: 20
AA110: 20+
Y152: ≤ 95ºC (hot water) | AD152: 1
Y153: 96 - 120ºC (hot water) | AD153: =AD152+1 -> 2
Y154: 121 - 150ºC (hot water) | AD154: 3
Y155: 100ºC (process pipework) | AD155: 4
Y156: 200ºC (process pipework) | AD156: 5
Y157: 300ºC (process pipework) | AD157: 6
Y158: 400ºC (process pipework) | AD158: 7
Y159: 500ºC (process pipework) | AD159: 8
Y160: 600ºC (process pipework) | AD160: 9
Y161: 700ºC (process pipework) | AD161: 10
AD162: 11
AD163: 12
AD164: 13
AD165: 14
AD166: 15
AD167: 16
AD168: 17
AD169: 18
AD170: 19
AD171: 20
AD172: 20+

Sheet Buried Pipework
B2: Question 1: 'Properly Insulated' Test for 'buried' external pipework
B4: External pipework located underground can be considered as being ‘properly insulated’ where it can be demonstrated that the pipework
B5: has been insulated in accordance with BS EN 253 (2009), BS EN 15632:2 and 3 (2010) and BS EN 15632:4 (2009), or BS EN 15698:1 (2009).
B6: In line with the declaration you accept when submitting your application to us, the information you provide here must be accurate to the best of your knowledge and belief. You must be able to demonstrate that this is the pipework manufacturer and model that you have installed as part of your heating system and be able to provide evidence such as invoices, receipts or photos if requested by Ofgem [(you are reminded that participants on the scheme have an ongoing obligation to provide us, if requested, with evidence that the heat for which payments are made is used for an eligible purpose: this includes evidence relating to the calculation of heat loss from piping)].
B8: STEP 1: For each length of 'buried' external pipework please state the make and model of pipework and select which of the standards above (if any) are applicable.
B9: STEP 2: Each length of 'buried' external pipework that may be considered 'properly insulated' in accordance with one of these standards and is > 10m in length must be added to the PI Calculator.
B10: STEP 3: Each length of 'buried' external pipework that cannot be considered 'properly insulated' in accordance with one of these standards must be added to the Non PI Calculator.
C12: Length (m) | D12: Description of pipe to enable it to be identified on schematic: | E12: Pipework make and model | F12: Pipework insulated in accordance with: | G12: What should I do next? | I12: BS EN 253 (2009)
B13: 1 | G13: =IF(OR(C13="",F13=""),"",IF(AND(C13>=10,OR(F13="BS EN 253 (2009)",F13="BS EN 15632: 2 and 3 (2010) and BS EN 15632:4 (2009)",F13="BS EN 15698: 1 (2009)")),"Add to PI Calculator",IF(AND(C13<10,OR(F13="BS EN 253 (2009)",F13="BS EN 15632: 2 and 3 (2010) and BS EN 15632:4 (2009)",F13="BS EN 15698: 1 (2009)")),"Disregarded","Add to Non PI Calculator"))) ->  | I13: BS EN 15632: 2 and 3 (2010) and BS EN 15632:4 (2009)
B14: 2 | G14: =IF(OR(C14="",F14=""),"",IF(AND(C14>=10,OR(F14="BS EN 253 (2009)",F14="BS EN 15632: 2 and 3 (2010) and BS EN 15632:4 (2009)",F14="BS EN 15698: 1 (2009)")),"Add to PI Calculator",IF(AND(C14<10,OR(F14="BS EN 253 (2009)",F14="BS EN 15632: 2 and 3 (2010) and BS EN 15632:4 (2009)",F14="BS EN 15698: 1 (2009)")),"Disregarded","Add to Non PI Calculator"))) ->  | I14: BS EN 15698: 1 (2009)
B15: 3 | I15: None of the above
B17: 4
B18: 5
B19: 6
B20: 7
B21: 8
B22: 9
B23: 10
B24: 11
B25: 12
B26: 13
B27: 14
B28: 15
B29: 16
B30: 17
B31: 18
B32: 19
B33: 20
B36: Evidence that 'buried' pipework has been insulated in accordance with BS EN 253 (2009), BS EN 15632:2 and 3 (2010) and BS EN 15632:4 (2009), or BS EN 15698:1 (2009) will need to be provided to Ofgem.
B37: Possible methods of demonstrating this are as follows:
B39: 1) Provide a test certificate confirming that your make and model of pipework has been insulated in accordance with one of the above standards.
B40: 2) Provide a photo that shows a stamp on your pipework indicating insulation has been in accordance with one of the above standards (if accessible).
B41: 3) Other forms of evidence may be submitted which Ofgem will assess on a case-by-case basis.

Sheet PI Calculator
B2: Before filling in this sheet, please read the
B3: HLC Guide
B5: Renewable Heat Incentive
B6: Calculation of Heat Losses from 'Properly Insulated' pipes > 10m in length.
E8: Belfast
E9: Birmingham
E10: Cardiff
B11: Location | E11: Edinburgh
E12: Glasgow
E13: Leeds
E14: London
B15: User Defined Insulation 1 | E15: Manchester
B16: Name: | E16: Newcastle
B17: Conductivity (Flow): | D17: W/mK | E17: Nottingham
B18: Conductivity (Return): | D18: W/mK | E18: Plymouth
E19: Southampton
B20: User Defined Insulation 2 | E20: Manchester
B21: Name: | E21: Newcastle
B22: Conductivity (Flow): | D22: W/mK | E22: Nottingham
B23: Conductivity (Return): | D23: W/mK | E23: Plymouth
E24: Southampton
B25: User Defined Insulation 3
B26: Name:
B27: Conductivity (Flow): | D27: W/mK
B28: Conductivity (Return): | D28: W/mK
B30: Use these buttons to add
B31: and delete a column for each | C31: column count start with col E | D31: =COUNTA(E89:E89) -> 1
B32: external pipe run.
B33: Projected Annual Generation | C33: kWh
B35: Distribution System Details
B36: Pipe Sections | C36: Units | D36: Total
B37: Section Name | C37: - | D37: - | E37: Example
B38: Flow or Return? | C38: - | D38: - | E38: Flow
B39: Length | C39: m | D39: =SUMIF(OFFSET(E39,0,1,1,$D$31),"<>#n/a",OFFSET(E39,0,1,1,$D$31)) -> 0 | E39: 1000
B40: Is the pipe length pre-insulated or buried? (If yes please complete Row 54 below) | C40: - | D40: - | E40: No
B41: Not Pre-insulated
B42: Nominal Diameter | C42: mm | D42: - | E42: 90
B43: Outside Diameter | C43: mm | D43: - | E43: -
B44: Insulation Type (select only for temperatures < 95oC) | C44: - | D44: - | E44: Glass Fibre
B45: Insulation Thickness | C45: mm | D45: - | E45: 25
B46: User defined insulation thickness | C46: mm | D46: - | E46: -
B47: Surface Emissivity | C47: - | D47: - | E47: High
B48: External Condition | C48: - | D48: - | E48: Sheltered
B49: No. Valves | C49: - | D49: =SUMIF(OFFSET(E49,0,1,1,$D$31),"<>#n/a",OFFSET(E49,0,1,1,$D$31)) -> 0 | E49: 1
B50: Valves Insulated? | C50: - | D50: - | E50: No
B51: No. Flanges | C51: - | D51: =SUMIF(OFFSET(E51,0,1,1,$D$31),"<>#n/a",OFFSET(E51,0,1,1,$D$31)) -> 0 | E51: 1
B52: Flanges Insulated? | C52: - | D52: - | E52: No
B53: Pre-insulated or buried
B54: Heat Loss Rate for total cross-section of pipe | C54: W/mK | D54: - | E54: -
B55: Based on ground or air temperature? | E55: -
E56: TRUE
B57: Fluid Temperature | D57: Outside Dia: | E57: =IF(E42<>"User Defined o.d.",VLOOKUP(E42,Reference!$B$4:$C$22,2,FALSE),'PI Calculator'!E43) -> 101.6
B58: Month | C58: Units | D58: Total
B59: January | C59: ºC | D59: - | E59: 80
B60: February | C60: ºC | D60: - | E60: 80
B61: March | C61: ºC | D61: - | E61: 80
B62: April | C62: ºC | D62: - | E62: 80
B63: May | C63: ºC | D63: - | E63: 80
B64: June | C64: ºC | D64: - | E64: 80
B65: July | C65: ºC | D65: - | E65: 80
B66: August | C66: ºC | D66: - | E66: 80
B67: September | C67: ºC | D67: - | E67: 80
B68: October | C68: ºC | D68: - | E68: 80
B69: November | C69: ºC | D69: - | E69: 80
B70: December | C70: ºC | D70: - | E70: 80
B72: Operating Hours
B73: Month | C73: Units | D73: Total
B74: January | C74: hrs | D74: - | E74: 600
B75: February | C75: hrs | D75: - | E75: 550
B76: March | C76: hrs | D76: - | E76: 500
B77: April | C77: hrs | D77: - | E77: 450
B78: May | C78: hrs | D78: - | E78: 400
B79: June | C79: hrs | D79: - | E79: 350
B80: July | C80: hrs | D80: - | E80: 350
B81: August | C81: hrs | D81: - | E81: 400
B82: September | C82: hrs | D82: - | E82: 450
B83: October | C83: hrs | D83: - | E83: 500
B84: November | C84: hrs | D84: - | E84: 550
B85: December | C85: hrs | D85: - | E85: 600
B87: Heat Loss Rates (W/K)
B88: Pipe Sections | C88: Units | D88: Total
B89: Pipe | C89: W/K | D89: =SUMIF(OFFSET(E89,0,1,1,$D$31),"<>#n/a",OFFSET(E89,0,1,1,$D$31)) -> 0 | E89: =IF(E$40="Yes",E$54*E$39,E39*PI()*(E57/1000)*(1/(((E57/1000)/(2*OFFSET(Reference!$B$25,MATCH(E44,Reference!$B$26:$B$31,0),MATCH(E38,Reference!$C$25:$D$25,0)))*LN((E57+(2*IF(E45="User Defined",E46,E45) ))/E57))+(E57/(VLOOKUP(E48,Reference!$B$36:$E$37,IF(E47="High",2,IF(E47="Low",4,3)),FALSE)*(E57+(2*IF(E45="User Defined",E46,E45)))))))) -> 554.8404709
B90: Valves | C90: W/K | D90: =SUMIF(OFFSET(E90,0,1,1,$D$31),"<>#n/a",OFFSET(E90,0,1,1,$D$31)) -> 0 | E90: =IF(E40="No",IF(E49>0,E49*IF(E50="Yes",0,5*(E57/1000)*PI()*(E57/1000)*VLOOKUP(E48,Reference!$B$36:$E$37,IF(E47="High",2,IF(E47="Low",4,3)),FALSE)),0),0) -> 1.621463933
B91: Flanges | C91: W/K | D91: =SUMIF(OFFSET(E91,0,1,1,$D$31),"<>#n/a",OFFSET(E91,0,1,1,$D$31)) -> 0 | E91: =IF(E40="No",IF(E51>0,E51*IF(E52="Yes",0,1.5*(E57/1000)*PI()*(E57/1000)*VLOOKUP(E48,Reference!$B$36:$E$37,IF(E47="High",2,IF(E47="Low",4,3)),FALSE)),0),0) -> 0.4864391799
B93: Monthly Heat Losses
B94: Month | C94: Units | D94: Total
B95: January | C95: kWh | D95: =SUMIF(OFFSET(E95,0,1,1,$D$31),"<>#n/a",OFFSET(E95,0,1,1,$D$31)) -> 0 | E95: =IF(E$55="Ground",SUM(E$89:E$91)*(E59-Reference!$D$63)*E74*0.001,SUM(E$89:E$91)*(E59-Reference!$D$46)*E74*0.001) -> 
B96: February | C96: kWh | D96: 0 | E96: =IF(E$55="Ground",SUM(E$89:E$91)*(E60-Reference!$E$63)*E75*0.001,SUM(E$89:E$91)*(E60-Reference!$E$46)*E75*0.001) -> 
B97: March | C97: kWh | D97: 0 | E97: =IF(E$55="Ground",SUM(E$89:E$91)*(E61-Reference!$F$63)*E76*0.001,SUM(E$89:E$91)*(E61-Reference!$F$46)*E76*0.001) -> 
B98: April | C98: kWh | D98: 0 | E98: =IF(E$55="Ground",SUM(E$89:E$91)*(E62-Reference!$G$63)*E77*0.001,SUM(E$89:E$91)*(E62-Reference!$G$46)*E77*0.001) -> 
B99: May | C99: kWh | D99: 0 | E99: =IF(E$55="Ground",SUM(E$89:E$91)*(E63-Reference!$H$63)*E78*0.001,SUM(E$89:E$91)*(E63-Reference!$H$46)*E78*0.001) -> 
B100: June | C100: kWh | D100: 0 | E100: =IF(E$55="Ground",SUM(E$89:E$91)*(E64-Reference!$I$63)*E79*0.001,SUM(E$89:E$91)*(E64-Reference!$I$46)*E79*0.001) -> 
B101: July | C101: kWh | D101: 0 | E101: =IF(E$55="Ground",SUM(E$89:E$91)*(E65-Reference!$J$63)*E80*0.001,SUM(E$89:E$91)*(E65-Reference!$J$46)*E80*0.001) -> 
B102: August | C102: kWh | D102: 0 | E102: =IF(E$55="Ground",SUM(E$89:E$91)*(E66-Reference!$K$63)*E81*0.001,SUM(E$89:E$91)*(E66-Reference!$K$46)*E81*0.001) -> 
B103: September | C103: kWh | D103: 0 | E103: =IF(E$55="Ground",SUM(E$89:E$91)*(E67-Reference!$L$63)*E82*0.001,SUM(E$89:E$91)*(E67-Reference!$L$46)*E82*0.001) -> 
B104: October | C104: kWh | D104: 0 | E104: =IF(E$55="Ground",SUM(E$89:E$91)*(E68-Reference!$M$63)*E83*0.001,SUM(E$89:E$91)*(E68-Reference!$M$46)*E83*0.001) -> 
B105: November | C105: kWh | D105: 0 | E105: =IF(E$55="Ground",SUM(E$89:E$91)*(E69-Reference!$N$63)*E84*0.001,SUM(E$89:E$91)*(E69-Reference!$N$46)*E84*0.001) -> 
B106: December | C106: kWh | D106: 0 | E106: =IF(E$55="Ground",SUM(E$89:E$91)*(E70-Reference!$O$63)*E85*0.001,SUM(E$89:E$91)*(E70-Reference!$O$46)*E85*0.001) -> 
B108: Quaterly Heat Losses
B109: Period | C109: Units | D109: Total
B110: January - March | C110: kWh | D110: =SUM(D95:D97) -> 0
B111: April - June | C111: kWh | D111: =SUM(D98:D100) -> 0
B112: July - September | C112: KWh | D112: =SUM(D101:D103) -> 0
B113: October - December | C113: kWh | D113: =SUM(D104:D106) -> 0
B115: Annual Heat Loss | C115: kWh | D115: =SUM(D95:D106) -> 0
B120: Flow
B121: Return
B122: DUO
B123: Exposed
B124: Buried
B126: Yes
B127: No
B129: =Reference!B26 -> Glass Fibre
B130: =Reference!B27 -> Mineral Wool
B131: =Reference!B28 -> 85% Magnesia
B132: =Reference!B29 -> Calcium Silicate
B133: =Reference!B30 -> 
B134: =Reference!B31 -> 
B135: =Reference!B32 -> 
B137: =Reference!B36 -> Sheltered
B138: =Reference!B37 -> Exposed
B140: High
B141: Medium
B142: Low
B144: User Defined
B145: 12.5
B146: 19
B147: 25
B148: 38
B149: 50
B150: 75
B151: 100
B153: User Defined o.d.
B154: =Reference!B4 -> 8
B155: =Reference!B5 -> 10
B156: =Reference!B6 -> 15
B157: =Reference!B7 -> 20
B158: =Reference!B8 -> 25
B159: =Reference!B9 -> 32
B160: =Reference!B10 -> 40
B161: =Reference!B11 -> 50
B162: =Reference!B12 -> 65
B163: =Reference!B13 -> 80
B164: =Reference!B14 -> 90
B165: =Reference!B15 -> 100
B166: =Reference!B16 -> 125
B167: =Reference!B17 -> 150
B168: =Reference!B18 -> 175
B169: =Reference!B19 -> 200
B170: =Reference!B20 -> 222.5
B171: =Reference!B21 -> 250
B172: =Reference!B22 -> 300
B174: Ground
B175: Air
B178: Delete

Sheet Reference >>> (hidden)

Sheet BS5422 (hidden)
B2: Table 15: Indicative thickness of insulation for non-domestic heating services to control heat loss - Low emissivity outer surfaces | AD2: Drop down menu items
B3: Nominal diameter | C3: Outside diameter | D3: Low emissivity surface finish (ε = 0.05) | AD3: Metal | AE3: Buried | AF3: ≤ 95ºC (hot water) | AG3: Nominal | AH3: High emissivity | AI3: 0.025
D4: Low temperature heating services (< 95ºC) | L4: Medium temperature heating services (96 - 120ºC) | T4: High temperature heating services (121 - 150ºC) | AD4: Plastic | AE4: Above Ground | AF4: 96 - 120ºC (hot water) | AG4: Outside | AH4: Low emissivity | AI4: 0.03
D5: t = 75 | L5: t = 100 | T5: t = 125 | AF5: 121 - 150ºC (hot water) | AI5: 0.035
D6: λ = 0.025 | E6: λ = 0.03 | F6: λ = 0.035 | G6: λ = 0.04 | H6: λ = 0.045 | I6: λ = 0.05 | J6: λ = 0.055 | K6: Max heat loss | L6: λ = 0.025 | M6: λ = 0.03 | N6: λ = 0.035 | O6: λ = 0.04 | P6: λ = 0.045 | Q6: λ = 0.05 | R6: λ = 0.055 | S6: Max heat loss | T6: λ = 0.025 | U6: λ = 0.03 | V6: λ = 0.035 | W6: λ = 0.04 | X6: λ = 0.045 | Y6: λ = 0.05 | Z6: λ = 0.055 | AA6: Max heat loss | AF6: 100ºC (process pipework) | AI6: 0.04
B7: (mm) | D7: Thickness of insulation (mm) | K7: (W/m) | L7: Thickness of insulation (mm) | S7: (W/m) | T7: Thickness of insulation (mm) | AA7: (W/m) | AF7: 200ºC (process pipework) | AI7: 0.045
B8: 10 | C8: 17.2 | D8: 12 | E8: 17 | F8: 22 | G8: 30 | H8: 39 | I8: 51 | J8: 66 | K8: 8.9 | L8: 11 | M8: 15 | N8: 20 | O8: 26 | P8: 34 | Q8: 44 | R8: 56 | S8: 13.34 | T8: 10 | U8: 13 | V8: 18 | W8: 24 | X8: 31 | Y8: 39 | Z8: 50 | AA8: 17.92 | AF8: 300ºC (process pipework) | AI8: 0.05
B9: 15 | C9: 21.3 | D9: 14 | E9: 20 | F9: 26 | G9: 35 | H9: 46 | I9: 59 | J9: 75 | K9: 9.28 | L9: 14 | M9: 18 | N9: 25 | O9: 32 | P9: 42 | Q9: 54 | R9: 69 | S9: 13.56 | T9: 12 | U9: 17 | V9: 22 | W9: 29 | X9: 38 | Y9: 48 | Z9: 61 | AA9: 18.32 | AF9: 400ºC (process pipework) | AI9: 0.055
B10: 20 | C10: 26.9 | D10: 16 | E10: 22 | F10: 29 | G10: 38 | H10: 49 | I10: 62 | J10: 78 | K10: 10.06 | L10: 17 | M10: 24 | N10: 31 | O10: 41 | P10: 53 | Q10: 67 | R10: 82 | S10: 13.83 | T10: 16 | U10: 22 | V10: 28 | W10: 37 | X10: 47 | Y10: 60 | Z10: 76 | AA10: 18.7 | AF10: 500ºC (process pipework) | AI10: 0.06
B11: 25 | C11: 33.7 | D11: 18 | E11: 24 | F11: 31 | G11: 40 | H11: 51 | I11: 64 | J11: 79 | K11: 11.07 | L11: 21 | M11: 28 | N11: 37 | O11: 48 | P11: 62 | Q11: 78 | R11: 98 | S11: 14.39 | T11: 20 | U11: 27 | V11: 36 | W11: 46 | X11: 59 | Y11: 74 | Z11: 93 | AA11: 19.02 | AF11: 600ºC (process pipework) | AI11: 0.065
B12: 32 | C12: 42.4 | D12: 20 | E12: 26 | F12: 33 | G12: 42 | H12: 52 | I12: 65 | J12: 79 | K12: 12.3 | L12: 24 | M12: 32 | N12: 41 | O12: 52 | P12: 66 | Q12: 83 | R12: 103 | S12: 15.66 | T12: 26 | U12: 35 | V12: 45 | W12: 59 | X12: 71 | Y12: 93 | Z12: 117 | AA12: 19.25 | AF12: 700ºC (process pipework) | AI12: 0.07
B13: 40 | C13: 48.3 | D13: 21 | E13: 27 | F13: 35 | G13: 44 | H13: 55 | I13: 67 | J13: 82 | K13: 12.94 | L13: 25 | M13: 33 | N13: 42 | O13: 53 | P13: 67 | Q13: 83 | R13: 102 | S13: 16.67 | T13: 28 | U13: 37 | V13: 48 | W13: 61 | X13: 77 | Y13: 97 | Z13: 120 | AA13: 20.17 | AI13: 0.075
B14: 50 | C14: 60.3 | D14: 23 | E14: 29 | F14: 37 | G14: 46 | H14: 56 | I14: 68 | J14: 82 | K14: 14.45 | L14: 27 | M14: 36 | N14: 46 | O14: 57 | P14: 71 | Q14: 87 | R14: 106 | S14: 18.25 | T14: 31 | U14: 41 | V14: 52 | W14: 66 | X14: 83 | Y14: 102 | Z14: 125 | AA14: 21.96 | AI14: 0.08
B15: 65 | C15: 76.1 | D15: 24 | E15: 31 | F15: 39 | G15: 48 | H15: 58 | I15: 70 | J15: 83 | K15: 16.35 | L15: 30 | M15: 39 | N15: 49 | O15: 60 | P15: 74 | Q15: 89 | R15: 107 | S15: 20.42 | T15: 34 | U15: 45 | V15: 57 | W15: 71 | X15: 88 | Y15: 107 | Z15: 129 | AA15: 24.21 | AI15: 0.085
B16: 80 | C16: 88.9 | D16: 25 | E16: 32 | F16: 40 | G16: 49 | H16: 59 | I16: 70 | J16: 82 | K16: 17.91 | L16: 31 | M16: 40 | N16: 51 | O16: 62 | P16: 76 | Q16: 91 | R16: 108 | S16: 22.09 | T16: 36 | U16: 47 | V16: 60 | W16: 74 | X16: 91 | Y16: 110 | Z16: 132 | AA16: 25.99 | AI16: 0.09
B17: 100 | C17: 114.3 | D17: 27 | E17: 34 | F17: 42 | G17: 51 | H17: 61 | I17: 71 | J17: 83 | K17: 20.77 | L17: 34 | M17: 43 | N17: 54 | O17: 65 | P17: 79 | Q17: 93 | R17: 110 | S17: 25.31 | T17: 40 | U17: 51 | V17: 64 | W17: 79 | X17: 96 | Y17: 115 | Z17: 136 | AA17: 29.32 | AI17: 0.095
B18: 125 | C18: 139.7 | D18: 28 | E18: 35 | F18: 43 | G18: 52 | H18: 61 | I18: 71 | J18: 82 | K18: 23.71 | L18: 36 | M18: 46 | N18: 57 | O18: 68 | P18: 82 | Q18: 96 | R18: 112 | S18: 28.23 | T18: 43 | U18: 55 | V18: 68 | W18: 83 | X18: 100 | Y18: 118 | Z18: 139 | AA18: 32.47 | AI18: 0.1 | AK18: =IFERROR(MATCH(AF25,Temps,0),"NO") -> NO | AL18: Column offset to move to different temperatures in table
B19: 150 | C19: 168.3 | D19: 29 | E19: 37 | F19: 44 | G19: 53 | H19: 62 | I19: 72 | J19: 82 | K19: 26.89 | L19: 38 | M19: 48 | N19: 59 | O19: 70 | P19: 83 | Q19: 98 | R19: 113 | S19: 31.61 | T19: 46 | U19: 58 | V19: 71 | W19: 86 | X19: 103 | Y19: 121 | Z19: 141 | AA19: 36.04 | AI19: 0.105 | AK19: =IFERROR(MATCH(AF25,ProcessTemps,0),"NO") -> NO | AL19: Column offset to move to different temperatures in table for process temp
B20: 200 | C20: 219.1 | D20: 30 | E20: 38 | F20: 45 | G20: 54 | H20: 62 | I20: 72 | J20: 82 | K20: 32.54 | L20: 40 | M20: 50 | N20: 61 | O20: 72 | P20: 85 | Q20: 98 | R20: 113 | S20: 37.66 | T20: 49 | U20: 62 | V20: 75 | W20: 90 | X20: 106 | Y20: 124 | Z20: 144 | AA20: 42.16 | AI20: 0.11 | AK20: =MIN(AK18,AK19) -> 0 | AL20: shown figures
B21: 250 | C21: 273 | D21: 31 | E21: 38 | F21: 46 | G21: 54 | H21: 62 | I21: 71 | J21: 80 | K21: 38.83 | L21: 42 | M21: 52 | N21: 63 | O21: 74 | P21: 87 | Q21: 100 | R21: 114 | S21: 43.72 | T21: 52 | U21: 64 | V21: 78 | W21: 93 | X21: 109 | Y21: 127 | Z21: 145 | AA21: 48.48 | AI21: 0.115
AD23: Calculation | AF23: Input | AG23: Notes
B24: Table 16: Indicative thickness of insulation for non-domestic heating services to control heat loss - High emissivity outer surfaces | AD24: Pipework material | AF24: ='Above Ground Pipework'!D33 -> 0
B25: Nominal diameter | C25: Outside diameter | D25: High emissivity surface finish (ε = 0.90) | AD25: Fluid temperature | AF25: ='Above Ground Pipework'!D34 -> 0 | AG25: =AK20 -> 0 | AH25: Column offset to move to different temperatures in table
D26: Low temperature heating services (< 95ºC) | L26: Medium temperature heating services (96 - 120ºC) | T26: High temperature heating services (121 - 150ºC) | AD26: Measurement type | AF26: ='Above Ground Pipework'!D36 -> 0
D27: t = 75 | L27: t = 100 | T27: t = 125 | AD27: Pipe diameter | AF27: ='Above Ground Pipework'!D35 -> 0 | AG27: =IF(AF26="Nominal",IF(AF27<=MAX(B8:B21),IF(AF27<MIN(B8:B21),1,MATCH(AF27,$B$8:$B$21,1)),14),IF(AF27<=MAX(C8:C21),IF(AF27<MIN(C8:C21),1,MATCH(AF27,$C$8:$C$21,1)),14))+1 -> 2 | AH27: =IF(AF26="Nominal",OFFSET(B8,AG27-2,0),OFFSET(C8,AG27-2,0)) -> 17.2 | AI27: =IF(AF26="Nominal",IF(AF27<=MAX(B8:B21),OFFSET(B8,AG27-1,0),B21),IF(AF27<=MAX(C8:C21),OFFSET(C8,AG27-1,0),C21)) -> 21.3 | AJ27: =IF(AH27<>AI27,IF(AF27<=AH27,0,1),0) -> 0 | AK27: These are the calculated diameters and the proportion for interpolation, note: that intermediate values are always rounded up
D28: λ = 0.025 | E28: λ = 0.03 | F28: λ = 0.035 | G28: λ = 0.04 | H28: λ = 0.045 | I28: λ = 0.05 | J28: λ = 0.055 | K28: Max heat loss | L28: λ = 0.025 | M28: λ = 0.03 | N28: λ = 0.035 | O28: λ = 0.04 | P28: λ = 0.045 | Q28: λ = 0.05 | R28: λ = 0.055 | S28: Max heat loss | T28: λ = 0.025 | U28: λ = 0.03 | V28: λ = 0.035 | W28: λ = 0.04 | X28: λ = 0.045 | Y28: λ = 0.05 | Z28: λ = 0.055 | AA28: Max heat loss | AD28: Above ground? | AF28: ='Above Ground Pipework'!D31 -> 0
B29: (mm) | D29: Thickness of insulation (mm) | K29: (W/m) | L29: Thickness of insulation (mm) | S29: (W/m) | T29: Thickness of insulation (mm) | AA29: (W/m) | AD29: Thermal conductivity | AF29: ='Above Ground Pipework'!D40 -> 0 | AG29: =IF(OR(AF25="≤ 95ºC (hot water)",AF25="96 - 120ºC (hot water)",AF25="121 - 150ºC (hot water)"),IF(AF29<AI3,1,IF(AF29>AI9,7,MATCH(AF29,AI3:AI9,1))),IF(AF29<AI3,1,IF(AF29>AI21,19,MATCH(AF29,AI3:AI21,1)))) -> 1 | AH29: =IF(OR(AF25="≤ 95ºC (hot water)",AF25="96 - 120ºC (hot water)",AF25="121 - 150ºC (hot water)"),IF(AF29<AI3,1,MIN(AG29+1,7)),IF(AF29<AI3,1,MIN(AG29+1,19))) -> 1 | AI29: =IF(OR(AF25="≤ 95ºC (hot water)",AF25="96 - 120ºC (hot water)",AF25="121 - 150ºC (hot water)"),OFFSET(D6,0,AG29-1),OFFSET(D6,61,AG29-1)) -> λ = 0.025 | AJ29: =IF(OR(AF25="≤ 95ºC (hot water)",AF25="96 - 120ºC (hot water)",AF25="121 - 150ºC (hot water)"),OFFSET(D6,0,AH29-1),OFFSET(D6,61,AH29-1)) -> λ = 0.025 | AK29: =IFERROR(IF(AND(AF29>=0.025,AF29<=0.115),(AF29-OFFSET($AI$2,$AG$29,0))/(OFFSET($AI$2,$AH$29,0)-OFFSET($AI$2,$AG$29,0)),0),0) -> 0 | AL29: These are the calculated conductivities and the proportion for interpolation
B30: 10 | C30: 17.2 | D30: 14 | E30: 19 | F30: 25 | G30: 34 | H30: 44 | I30: 57 | J30: 72 | K30: 8.9 | L30: 13 | M30: 17 | N30: 23 | O30: 30 | P30: 38 | Q30: 49 | R30: 62 | S30: 13.34 | T30: 12 | U30: 16 | V30: 21 | W30: 28 | X30: 35 | Y30: 45 | Z30: 57 | AA30: 17.92 | AD30: Surface finish | AF30: ='Above Ground Pipework'!D41 -> 0 | AG30: =IF(AF30=AH3,22,IF(AF30=AH4,0,IF(OR(AF25="≤ 95ºC (hot water)",AF25="96 - 120ºC (hot water)",AF25="121 - 150ºC (hot water)"),0,60))) -> 60 | AH30: Row offset to move to second table or fourth one
B31: 15 | C31: 21.3 | D31: 16 | E31: 22 | F31: 30 | G31: 39 | H31: 50 | I31: 64 | J31: 81 | K31: 9.28 | L31: 16 | M31: 21 | N31: 28 | O31: 36 | P31: 47 | Q31: 60 | R31: 75 | S31: 13.56 | T31: 15 | U31: 20 | V31: 26 | W31: 33 | X31: 42 | Y31: 54 | Z31: 67 | AA31: 18.32
B32: 20 | C32: 26.9 | D32: 18 | E32: 25 | F32: 33 | G32: 42 | H32: 54 | I32: 68 | J32: 85 | K32: 10.06 | L32: 20 | M32: 26 | N32: 35 | O32: 45 | P32: 58 | Q32: 73 | R32: 92 | S32: 13.83 | T32: 18 | U32: 24 | V32: 32 | W32: 41 | X32: 52 | Y32: 66 | Z32: 82 | AA32: 18.7 | AD32: Reqd. thickness (Low Con.) | AF32: =IFERROR(AG32+((AH32-AG32)*AJ27),0) -> 0 | AG32: =IFERROR(IF(OR(AF25="≤ 95ºC (hot water)",AF25="96 - 120ºC (hot water)",AF25="121 - 150ºC (hot water)"),OFFSET(C8,AG30+(AG27-2),(AG29+((AG25-1)*8))),IF(OFFSET(C8,AG30+(AG27-2),(AG29+((AG25-1)*20)))<>"",OFFSET(C8,AG30+(AG27-2),(AG29+((AG25-1)*20))),10000)),0) -> 0 | AH32: =IFERROR(IF(OR(AF25="≤ 95ºC (hot water)",AF25="96 - 120ºC (hot water)",AF25="121 - 150ºC (hot water)"),OFFSET(C8,AG30+(AG27-1),(AG29+((AG25-1)*8))),IF(OFFSET(C8,AG30+(AG27-1),(AG29+((AG25-1)*20)))<>"",OFFSET(C8,AG30+(AG27-1),(AG29+((AG25-1)*20))),10000)),0) -> 0 | AI32: =IFERROR(IF(OR(AF25="≤ 95ºC (hot water)",AF25="96 - 120ºC (hot water)",AF25="121 - 150ºC (hot water)"),ADDRESS(ROW(OFFSET(C8,AG30+(AG27-2),(AG29+((AG25-1)*8)))),COLUMN(OFFSET(C8,AG30+(AG27-2),(AG29+((AG25-1)*8))))),ADDRESS(ROW(OFFSET(C8,AG30+(AG27-2),(AG29+((AG25-1)*20)))),COLUMN(OFFSET(C8,AG30+(AG27-2),(AG29+((AG25-1)*20)))))),0) -> 0 | AJ32: =IFERROR(IF(OR(AF25="≤ 95ºC (hot water)",AF25="96 - 120ºC (hot water)",AF25="121 - 150ºC (hot water)"),ADDRESS(ROW(OFFSET(C8,AG30+(AG27-1),(AG29+((AG25-1)*8)))),COLUMN(OFFSET(C8,AG30+(AG27-1),(AG29+((AG25-1)*8))))),ADDRESS(ROW(OFFSET(C8,AG30+(AG27-1),(AG29+((AG25-1)*20)))),COLUMN(OFFSET(C8,AG30+(AG27-1),(AG29+((AG25-1)*20)))))),0) -> 0 | AK32: This is the cell reference of the calculated required thickness
B33: 25 | C33: 33.7 | D33: 20 | E33: 2 | F33: 35 | G33: 44 | H33: 56 | I33: 69 | J33: 85 | K33: 11.07 | L33: 23 | M33: 31 | N33: 41 | O33: 53 | P33: 67 | Q33: 84 | R33: 106 | S33: 14.39 | T33: 23 | U33: 30 | V33: 39 | W33: 51 | X33: 64 | Y33: 81 | Z33: 100 | AA33: 19.02 | AD33: Reqd. thickness (High Con.) | AF33: =IFERROR(AG33+((AH33-AG33)*AJ27),0) -> 0 | AG33: =IFERROR(IF(OR(AF25="≤ 95ºC (hot water)",AF25="96 - 120ºC (hot water)",AF25="121 - 150ºC (hot water)"),OFFSET(C8,AG30+(AG27-2),(AH29+((AG25-1)*8))),IF(OFFSET(C8,AG30+(AG27-2),(AH29+((AG25-1)*20)))<>"",OFFSET(C8,AG30+(AG27-2),(AH29+((AG25-1)*20))),10000)),0) -> 0 | AH33: =IFERROR(IF(OR(AF25="≤ 95ºC (hot water)",AF25="96 - 120ºC (hot water)",AF25="121 - 150ºC (hot water)"),OFFSET(C8,AG30+(AG27-1),(AH29+((AG25-1)*8))),IF(OFFSET(C8,AG30+(AG27-1),(AH29+((AG25-1)*20)))<>"",OFFSET(C8,AG30+(AG27-1),(AH29+((AG25-1)*20))),10000)),0) -> 0 | AI33: =IFERROR(IF(OR(AF25="≤ 95ºC (hot water)",AF25="96 - 120ºC (hot water)",AF25="121 - 150ºC (hot water)"),ADDRESS(ROW(OFFSET(C8,AG30+(AG27-2),(AH29+((AG25-1)*8)))),COLUMN(OFFSET(C8,AG30+(AG27-2),(AH29+((AG25-1)*8))))),ADDRESS(ROW(OFFSET(C8,AG30+(AG27-2),(AH29+((AG25-1)*20)))),COLUMN(OFFSET(C8,AG30+(AG27-2),(AH29+((AG25-1)*20)))))),0) -> 0 | AJ33: =IFERROR(IF(OR(AF25="≤ 95ºC (hot water)",AF25="96 - 120ºC (hot water)",AF25="121 - 150ºC (hot water)"),ADDRESS(ROW(OFFSET(C8,AG30+(AG27-1),(AH29+((AG25-1)*8)))),COLUMN(OFFSET(C8,AG30+(AG27-1),(AH29+((AG25-1)*8))))),ADDRESS(ROW(OFFSET(C8,AG30+(AG27-1),(AH29+((AG25-1)*20)))),COLUMN(OFFSET(C8,AG30+(AG27-1),(AH29+((AG25-1)*20)))))),0) -> 0 | AK33: This is the cell reference of the calculated required thickness
B34: 32 | C34: 42.4 | D34: 22 | E34: 29 | F34: 37 | G34: 46 | H34: 57 | I34: 70 | J34: 86 | K34: 12.3 | L34: 26 | M34: 35 | N34: 45 | O34: 57 | P34: 72 | Q34: 89 | R34: 110 | S34: 15.66 | T34: 28 | U34: 38 | V34: 49 | W34: 63 | X34: 80 | Y34: 100 | Z34: 124 | AA34: 19.25 | AD34: Reqd. thickness (Interpolated) | AF34: =IF(OR(AF25="≤ 95ºC (hot water)",AF25="96 - 120ºC (hot water)",AF25="121 - 150ºC (hot water)"),IF(AF29<0.055,IF(AF28="Above Ground",1,1)*(AF32+((AF33-AF32)*AK29)),10000),IF(AND(AG29<20,AF32<>10000,AF29<=AI21),IF(AF28="Above Ground",1,1)*(AF32+((AF33-AF32)*AK29)),10000)) -> 0
B35: 40 | C35: 48.3 | D35: 23 | E35: 30 | F35: 39 | G35: 48 | H35: 60 | I35: 73 | J35: 88 | K35: 12.94 | L35: 27 | M35: 36 | N35: 46 | O35: 58 | P35: 72 | Q35: 89 | R35: 109 | S35: 16.67 | T35: 30 | U35: 40 | V35: 52 | W35: 66 | X35: 83 | Y35: 103 | Z35: 127 | AA35: 20.17 | AD35: Max heat loss | AF35: =(AG35+((AH35-AG35)*AJ27)) -> 17.2 | AG35: =AI39 -> 17.2 | AH35: =AJ39 -> 21.3 | AI35: These are the maximum heat losses
B36: 50 | C36: 60.3 | D36: 25 | E36: 32 | F36: 41 | G36: 51 | H36: 62 | I36: 74 | J36: 89 | K36: 14.45 | L36: 30 | M36: 39 | N36: 50 | O36: 62 | P36: 77 | Q36: 94 | R36: 113 | S36: 18.25 | T36: 24 | U36: 44 | V36: 57 | W36: 71 | X36: 88 | Y36: 109 | Z36: 133 | AA36: 21.96
B37: 65 | C37: 76.1 | D37: 27 | E37: 35 | F37: 43 | G37: 53 | H37: 64 | I37: 76 | J37: 90 | K37: 16.35 | L37: 32 | M37: 42 | N37: 53 | O37: 65 | P37: 80 | Q37: 96 | R37: 115 | S37: 20.42 | T37: 27 | U37: 48 | V37: 61 | W37: 75 | X37: 94 | Y37: 114 | Z37: 137 | AA37: 24.21 | AI37: =IF(OR(AF25="≤ 95ºC (hot water)",AF25="96 - 120ºC (hot water)",AF25="121 - 150ºC (hot water)"),OFFSET(C8,AG30+(AG27-2),AG25*8),0) -> 0 | AJ37: =IF(OR(AF25="≤ 95ºC (hot water)",AF25="96 - 120ºC (hot water)",AF25="121 - 150ºC (hot water)"),OFFSET(C8,AG30+(AG27-1),AG25*8),0) -> 0 | AK37: max heat loss water
B38: 80 | C38: 88.9 | D38: 28 | E38: 36 | F38: 44 | G38: 54 | H38: 64 | I38: 76 | J38: 90 | K38: 17.91 | L38: 34 | M38: 44 | N38: 55 | O38: 68 | P38: 82 | Q38: 98 | R38: 116 | S38: 22.09 | T38: 29 | U38: 51 | V38: 65 | W38: 79 | X38: 97 | Y38: 117 | Z38: 140 | AA38: 25.99 | AI38: =IF(OR(AF25="≤ 95ºC (hot water)",AF25="96 - 120ºC (hot water)",AF25="121 - 150ºC (hot water)"),0,OFFSET(C8,AG30+(AG27-2),AG25*20)) -> 17.2 | AJ38: =IF(OR(AF25="≤ 95ºC (hot water)",AF25="96 - 120ºC (hot water)",AF25="121 - 150ºC (hot water)"),0,OFFSET(C8,AG30+(AG27-1),AG25*20)) -> 21.3 | AK38: max heat loss steam or liquid
B39: 100 | C39: 114.3 | D39: 30 | E39: 38 | F39: 47 | G39: 56 | H39: 66 | I39: 78 | J39: 91 | K39: 20.77 | L39: 37 | M39: 47 | N39: 58 | O39: 71 | P39: 85 | Q39: 100 | R39: 118 | S39: 25.31 | T39: 43 | U39: 55 | V39: 69 | W39: 85 | X39: 102 | Y39: 122 | Z39: 144 | AA39: 29.32 | AI39: =MAX(AI37:AI38) -> 17.2 | AJ39: =MAX(AJ37:AJ38) -> 21.3 | AK39: shown figures
B40: 125 | C40: 139.7 | D40: 31 | E40: 39 | F40: 48 | G40: 57 | H40: 67 | I40: 78 | J40: 90 | K40: 23.71 | L40: 39 | M40: 50 | N40: 61 | O40: 74 | P40: 88 | Q40: 103 | R40: 120 | S40: 28.23 | T40: 46 | U40: 59 | V40: 73 | W40: 89 | X40: 106 | Y40: 126 | Z40: 148 | AA40: 32.47
B41: 150 | C41: 168.3 | D41: 33 | E41: 40 | F41: 49 | G41: 58 | H41: 68 | I41: 79 | J41: 90 | K41: 26.89 | L41: 41 | M41: 52 | N41: 64 | O41: 76 | P41: 90 | Q41: 105 | R41: 122 | S41: 31.61 | T41: 49 | U41: 62 | V41: 76 | W41: 92 | X41: 109 | Y41: 129 | Z41: 150 | AA41: 36.04
B42: 200 | C42: 219.1 | D42: 34 | E42: 42 | F42: 50 | G42: 60 | H42: 69 | I42: 79 | J42: 90 | K42: 32.54 | L42: 44 | M42: 55 | N42: 66 | O42: 79 | P42: 92 | Q42: 106 | R42: 122 | S42: 37.66 | T42: 53 | U42: 66 | V42: 81 | W42: 96 | X42: 114 | Y42: 132 | Z42: 153 | AA42: 42.16
B43: 250 | C43: 273 | D43: 35 | E43: 43 | F43: 51 | G43: 60 | H43: 69 | I43: 79 | J43: 89 | K43: 38.83 | L43: 46 | M43: 57 | N43: 68 | O43: 81 | P43: 94 | Q43: 108 | R43: 123 | S43: 43.72 | T43: 56 | U43: 69 | V43: 84 | W43: 100 | X43: 117 | Y43: 135 | Z43: 155 | AA43: 48.48
B45: Table 21: Minimum insulation thickness for process pipework and equipment to control heat loss
B46: Nominal diameter (mm) | C46: Outside diameter (mm) | D46: t = 100 | L46: t = 200 | T46: t = 300 | AB46: t = 400 | AJ46: t = 500 | AR46: t = 600 | AZ46: t = 700
D47: insulation thickness (mm) | K47: Max heat loss (W/m) | L47: insulation thickness (mm) | S47: Max heat loss (W/m) | T47: insulation thickness (mm) | AA47: Max heat loss (W/m) | AB47: insulation thickness (mm) | AI47: Max heat loss (W/m) | AJ47: insulation thickness (mm) | AQ47: Max heat loss (W/m) | AR47: insulation thickness (mm) | AY47: Max heat loss (W/m) | AZ47: insulation thickness (mm) | BG47: Max heat loss (W/m)
D48: λ = 0.025 | E48: λ = 0.03 | F48: λ = 0.035 | G48: λ = 0.04 | H48: λ = 0.045 | I48: λ = 0.05 | J48: λ = 0.055 | L48: λ = 0.035 | M48: λ = 0.04 | N48: λ = 0.045 | O48: λ = 0.05 | P48: λ = 0.055 | Q48: λ = 0.06 | R48: λ = 0.065 | T48: λ = 0.045 | U48: λ = 0.05 | V48: λ = 0.055 | W48: λ = 0.06 | X48: λ = 0.065 | Y48: λ = 0.07 | Z48: λ = 0.075 | AB48: λ = 0.055 | AC48: λ = 0.06 | AD48: λ = 0.065 | AE48: λ = 0.07 | AF48: λ = 0.075 | AG48: λ = 0.08 | AH48: λ = 0.085 | AJ48: λ = 0.065 | AK48: λ = 0.07 | AL48: λ = 0.075 | AM48: λ = 0.08 | AN48: λ = 0.085 | AO48: λ = 0.09 | AP48: λ = 0.095 | AR48: λ = 0.075 | AS48: λ = 0.08 | AT48: λ = 0.085 | AU48: λ = 0.09 | AV48: λ = 0.095 | AW48: λ = 0.1 | AX48: λ = 0.105 | AZ48: λ = 0.085 | BA48: λ = 0.09 | BB48: λ = 0.095 | BC48: λ = 0.1 | BD48: λ = 0.105 | BE48: λ = 0.11 | BF48: λ = 0.115
B49: 10 | C49: 17.2 | D49: 10 | E49: 14 | F49: 19 | G49: 24 | H49: 31 | I49: 40 | J49: 51 | K49: 12.79 | L49: 20 | M49: 26 | N49: 33 | O49: 42 | P49: 54 | Q49: 68 | R49: 85 | S49: 28.67 | T49: 30 | U49: 38 | V49: 47 | W49: 59 | X49: 73 | Y49: 91 | Z49: 112 | AA49: 47.12 | AB49: 39 | AC49: 48 | AD49: 59 | AE49: 73 | AF49: 89 | AG49: 108 | AH49: 131 | AI49: 69.08 | AJ49: 46 | AK49: 56 | AL49: 67 | AM49: 80 | AN49: 96 | AO49: 115 | AP49: 137 | AQ49: 96.08 | AR49: 52 | AS49: 62 | AT49: 73 | AU49: 87 | AV49: 102 | AW49: 120 | AX49: 141 | AY49: 126.93 | AZ49: 56 | BA49: 65 | BB49: 76 | BC49: 88 | BD49: 103 | BE49: 119 | BF49: 138 | BG49: 163.63
B50: 15 | C50: 21.3 | D50: 11 | E50: 15 | F50: 20 | G50: 25 | H50: 32 | I50: 40 | J50: 51 | K50: 14.04 | L50: 22 | M50: 28 | N50: 36 | O50: 46 | P50: 57 | Q50: 71 | R50: 88 | S50: 30.72 | T50: 32 | U50: 41 | V50: 50 | W50: 62 | X50: 76 | Y50: 93 | Z50: 114 | AA50: 50.54 | AB50: 42 | AC50: 51 | AD50: 62 | AE50: 76 | AF50: 91 | AG50: 110 | AH50: 132 | AI50: 74.1 | AJ50: 49 | AK50: 59 | AL50: 70 | AM50: 83 | AN50: 98 | AO50: 116 | AP50: 137 | AQ50: 103 | AR50: 56 | AS50: 66 | AT50: 77 | AU50: 91 | AV50: 106 | AW50: 123 | AX50: 143 | AY50: 135.4 | AZ50: 60 | BA50: 69 | BB50: 80 | BC50: 92 | BD50: 106 | BE50: 122 | BF50: 141 | BG50: 174.49
B51: 20 | C51: 26.9 | D51: 13 | E51: 17 | F51: 21 | G51: 27 | H51: 34 | I51: 42 | J51: 52 | K51: 15.42 | L51: 24 | M51: 30 | N51: 38 | O51: 47 | P51: 59 | Q51: 72 | R51: 88 | S51: 33.73 | T51: 35 | U51: 43 | V51: 53 | W51: 65 | X51: 79 | Y51: 95 | Z51: 115 | AA51: 54.97 | AB51: 46 | AC51: 55 | AD51: 66 | AE51: 80 | AF51: 95 | AG51: 113 | AH51: 134 | AI51: 80.06 | AJ51: 54 | AK51: 64 | AL51: 75 | AM51: 88 | AN51: 103 | AO51: 121 | AP51: 141 | AQ51: 110.72 | AR51: 61 | AS51: 71 | AT51: 82 | AU51: 96 | AV51: 111 | AW51: 128 | AX51: 147 | AY51: 145.58 | AZ51: 65 | BA51: 75 | BB51: 86 | BC51: 98 | BD51: 113 | BE51: 128 | BF51: 146 | BG51: 186.89
B52: 25 | C52: 33.7 | D52: 14 | E52: 18 | F52: 23 | G52: 28 | H52: 35 | I52: 43 | J52: 52 | K52: 17.25 | L52: 26 | M52: 32 | N52: 40 | O52: 49 | P52: 60 | Q52: 73 | R52: 88 | S52: 37.11 | T52: 38 | U52: 46 | V52: 56 | W52: 68 | X52: 81 | Y52: 97 | Z52: 116 | AA52: 59.9 | AB52: 49 | AC52: 58 | AD52: 69 | AE52: 82 | AF52: 97 | AG52: 114 | AH52: 134 | AI52: 87.16 | AJ52: 58 | AK52: 68 | AL52: 79 | AM52: 92 | AN52: 107 | AO52: 124 | AP52: 143 | AQ52: 119.8 | AR52: 66 | AS52: 76 | AT52: 87 | AU52: 101 | AV52: 115 | AW52: 132 | AX52: 151 | AY52: 156.77 | AZ52: 70 | BA52: 80 | BB52: 91 | BC52: 103 | BD52: 117 | BE52: 133 | BF52: 150 | BG52: 201.2
B53: 32 | C53: 42.4 | D53: 15 | E53: 19 | F53: 24 | G53: 30 | H53: 37 | I53: 45 | J53: 54 | K53: 19.15 | L53: 28 | M53: 35 | N53: 43 | O53: 52 | P53: 63 | Q53: 76 | R53: 90 | S53: 40.76 | T53: 41 | U53: 49 | V53: 59 | W53: 71 | X53: 84 | Y53: 99 | Z53: 116 | AA53: 65.79 | AB53: 53 | AC53: 62 | AD53: 73 | AE53: 86 | AF53: 101 | AG53: 117 | AH53: 136 | AI53: 95.05 | AJ53: 62 | AK53: 72 | AL53: 83 | AM53: 96 | AN53: 110 | AO53: 127 | AP53: 145 | AQ53: 130.57 | AR53: 71 | AS53: 81 | AT53: 92 | AU53: 105 | AV53: 120 | AW53: 136 | AX53: 155 | AY53: 170 | AZ53: 76 | BA53: 86 | BB53: 97 | BC53: 109 | BD53: 123 | BE53: 138 | BF53: 155 | BG53: 217.29
B54: 40 | C54: 48.3 | D54: 16 | E54: 20 | F54: 25 | G54: 31 | H54: 38 | I54: 46 | J54: 54 | K54: 20.42 | L54: 29 | M54: 36 | N54: 44 | O54: 53 | P54: 64 | Q54: 76 | R54: 90 | S54: 43.42 | T54: 43 | U54: 51 | V54: 61 | W54: 73 | X54: 86 | Y54: 101 | Z54: 118 | AA54: 69.42 | AB54: 55 | AC54: 65 | AD54: 76 | AE54: 89 | AF54: 104 | AG54: 120 | AH54: 139 | AI54: 99.66 | AJ54: 64 | AK54: 75 | AL54: 86 | AM54: 99 | AN54: 113 | AO54: 129 | AP54: 148 | AQ54: 136.95 | AR54: 73 | AS54: 84 | AT54: 95 | AU54: 108 | AV54: 123 | AW54: 139 | AX54: 157 | AY54: 178.3 | AZ54: 79 | BA54: 89 | BB54: 100 | BC54: 112 | BD54: 126 | BE54: 141 | BF54: 158 | BG54: 227.84
B55: 50 | C55: 60.3 | D55: 17 | E55: 21 | F55: 26 | G55: 32 | H55: 39 | I55: 46 | J55: 54 | K55: 23.17 | L55: 31 | M55: 38 | N55: 46 | O55: 55 | P55: 65 | Q55: 77 | R55: 90 | S55: 48.44 | T55: 46 | U55: 54 | V55: 64 | W55: 76 | X55: 88 | Y55: 102 | Z55: 119 | AA55: 76.66 | AB55: 59 | AC55: 68 | AD55: 79 | AE55: 92 | AF55: 106 | AG55: 121 | AH55: 139 | AI55: 109.91 | AJ55: 69 | AK55: 80 | AL55: 91 | AM55: 104 | AN55: 118 | AO55: 134 | AP55: 151 | AQ55: 149.28 | AR55: 78 | AS55: 89 | AT55: 101 | AU55: 113 | AV55: 127 | AW55: 143 | AX55: 160 | AY55: 194.3 | AZ55: 85 | BA55: 95 | BB55: 106 | BC55: 118 | BD55: 132 | BE55: 147 | BF55: 163 | BG55: 247.23
B56: 65 | C56: 76.1 | D56: 18 | E56: 23 | F56: 28 | G56: 34 | H56: 41 | I56: 48 | J56: 56 | K56: 26.21 | L56: 34 | M56: 41 | N56: 49 | O56: 58 | P56: 68 | Q56: 80 | R56: 92 | S56: 54.2 | T56: 49 | U56: 58 | V56: 68 | W56: 80 | X56: 92 | Y56: 106 | Z56: 122 | AA56: 85.08 | AB56: 63 | AC56: 73 | AD56: 84 | AE56: 97 | AF56: 111 | AG56: 126 | AH56: 143 | AI56: 121.21 | AJ56: 74 | AK56: 85 | AL56: 96 | AM56: 109 | AN56: 123 | AO56: 138 | AP56: 155 | AQ56: 164.62 | AR56: 84 | AS56: 95 | AT56: 107 | AU56: 119 | AV56: 133 | AW56: 149 | AX56: 165 | AY56: 213.22 | AZ56: 91 | BA56: 102 | BB56: 113 | BC56: 125 | BD56: 139 | BE56: 153 | BF56: 169 | BG56: 270.2
B57: 80 | C57: 88.9 | D57: 19 | E57: 24 | F57: 29 | G57: 35 | H57: 42 | I57: 49 | J57: 57 | K57: 28.73 | L57: 36 | M57: 43 | N57: 51 | O57: 60 | P57: 70 | Q57: 81 | R57: 94 | S57: 58.66 | T57: 51 | U57: 60 | V57: 70 | W57: 81 | X57: 94 | Y57: 107 | Z57: 122 | AA57: 92.02 | AB57: 66 | AC57: 76 | AD57: 87 | AE57: 100 | AF57: 113 | AG57: 128 | AH57: 145 | AI57: 130.15 | AJ57: 77 | AK57: 88 | AL57: 99 | AM57: 112 | AN57: 125 | AO57: 140 | AP57: 15 | AQ57: 176.67 | AR57: 88 | AS57: 99 | AT57: 111 | AU57: 123 | AV57: 137 | AW57: 152 | AX57: 168 | AY57: 227.69 | AZ57: 95 | BA57: 106 | BB57: 117 | BC57: 129 | BD57: 143 | BE57: 157 | BF57: 173 | BG57: 288.43
B58: 100 | C58: 114.3 | D58: 20 | E58: 25 | F58: 30 | G58: 36 | H58: 43 | I58: 49 | J58: 57 | K58: 33.89 | L58: 38 | M58: 46 | N58: 54 | O58: 63 | P58: 73 | Q58: 84 | R58: 96 | S58: 67.25 | T58: 55 | U58: 64 | V58: 74 | W58: 85 | X58: 97 | Y58: 110 | Z58: 125 | AA58: 104.55 | AB58: 71 | AC58: 81 | AD58: 92 | AE58: 105 | AF58: 118 | AG58: 133 | AH58: 148 | AI58: 146.83 | AJ58: 83 | AK58: 94 | AL58: 105 | AM58: 118 | AN58: 131 | AO58: 146 | AP58: 161 | AQ58: 198.17 | AR58: 95 | AS58: 106 | AT58: 118 | AU58: 130 | AV58: 144 | AW58: 159 | AX58: 174 | AY58: 254.18 | AZ58: 103 | BA58: 114 | BB58: 125 | BC58: 137 | BD58: 151 | BE58: 165 | BF58: 180 | BG58: 320.67
B59: 125 | C59: 139.7 | D59: 21 | E59: 26 | F59: 31 | G59: 37 | H59: 44 | I59: 50 | J59: 57 | K59: 38.74 | L59: 40 | M59: 48 | N59: 56 | O59: 65 | P59: 75 | Q59: 85 | R59: 97 | S59: 75.74 | T59: 58 | U59: 67 | V59: 77 | W59: 88 | X59: 100 | Y59: 113 | Z59: 127 | AA59: 116.62 | AB59: 74 | AC59: 84 | AD59: 95 | AE59: 107 | AF59: 120 | AG59: 134 | AH59: 149 | AI59: 163.6 | AJ59: 88 | AK59: 99 | AL59: 110 | AM59: 123 | AN59: 136 | AO59: 150 | AP59: 166 | AQ59: 218.23 | AR59: 100 | AS59: 111 | AT59: 123 | AU59: 135 | AV59: 149 | AW59: 163 | AX59: 178 | AY59: 279.81 | AZ59: 109 | BA59: 120 | BB59: 131 | BC59: 143 | BD59: 157 | BE59: 170 | BF59: 185 | BG59: 351.43
B60: 150 | C60: 168.3 | D60: 22 | E60: 27 | F60: 33 | G60: 38 | H60: 44 | I60: 51 | J60: 58 | K60: 43.99 | L60: 42 | M60: 50 | N60: 58 | O60: 67 | P60: 77 | Q60: 87 | R60: 98 | S60: 84.85 | T60: 61 | U60: 70 | V60: 80 | W60: 91 | X60: 103 | Y60: 115 | Z60: 129 | AA60: 129.46 | AB60: 78 | AC60: 88 | AD60: 99 | AE60: 111 | AF60: 124 | AG60: 138 | AH60: 153 | AI60: 180.38 | AJ60: 92 | AK60: 103 | AL60: 114 | AM60: 126 | AN60: 140 | AO60: 154 | AP60: 169 | AQ60: 240.54 | AR60: 106 | AS60: 117 | AT60: 129 | AU60: 141 | AV60: 155 | AW60: 169 | AX60: 184 | AY60: 305.53 | AZ60: 115 | BA60: 126 | BB60: 137 | BC60: 149 | BD60: 162 | BE60: 176 | BF60: 191 | BG60: 383.75
B61: 200 | C61: 219.1 | D61: 23 | E61: 28 | F61: 34 | G61: 39 | H61: 45 | I61: 52 | J61: 58 | K61: 53.38 | L61: 44 | M61: 52 | N61: 60 | O61: 69 | P61: 78 | Q61: 88 | R61: 99 | S61: 101.24 | T61: 64 | U61: 73 | V61: 83 | W61: 94 | X61: 105 | Y61: 117 | Z61: 130 | AA61: 152.7 | AB61: 83 | AC61: 93 | AD61: 104 | AE61: 116 | AF61: 129 | AG61: 142 | AH61: 156 | AI61: 209.59 | AJ61: 98 | AK61: 109 | AL61: 120 | AM61: 132 | AN61: 145 | AO61: 159 | AP61: 173 | AQ61: 277.77 | AR61: 113 | AS61: 124 | AT61: 136 | AU61: 148 | AV61: 161 | AW61: 175 | AX61: 189 | AY61: 350.96 | AZ61: 123 | BA61: 135 | BB61: 146 | BC61: 158 | BD61: 170 | BE61: 184 | BF61: 192 | BG61: 437.18
B62: 250 | C62: 273 | D62: 24 | E62: 29 | F62: 35 | G62: 40 | H62: 46 | I62: 53 | J62: 59 | K62: 62.87 | L62: 46 | M62: 54 | N62: 62 | O62: 71 | P62: 80 | Q62: 90 | R62: 100 | S62: 117.64 | T62: 67 | U62: 76 | V62: 86 | W62: 97 | X62: 108 | Y62: 120 | Z62: 132 | AA62: 175.73 | AB62: 87 | AC62: 97 | AD62: 108 | AE62: 120 | AF62: 133 | AG62: 146 | AH62: 159 | AI62: 239.4 | AJ62: 103 | AK62: 114 | AL62: 125 | AM62: 137 | AN62: 150 | AO62: 163 | AP62: 176 | AQ62: 315.35 | AR62: 123 | AS62: 135 | AT62: 147 | AU62: 159 | AV62: 173 | AW62: 191 | AX62: 191 | AY62: 386.92 | AZ62: 128 | BA62: 139 | BB62: 154 | BC62: 166 | BD62: 179 | BE62: 193 | BF62: 193 | BG62: 495.09
B64: Table 21: Minimum insulation thickness for process pipework and equipment to control heat loss
B65: Nominal diameter (mm) | C65: Outside diameter (mm) | D65: t = 100 | X65: t = 200 | AR65: t = 300 | BL65: t = 400 | CF65: t = 500 | CZ65: t = 600 | DT65: t = 700
D66: insulation thickness (mm) | W66: Max heat loss (W/m) | X66: insulation thickness (mm) | AQ66: Max heat loss (W/m) | AR66: insulation thickness (mm) | BK66: Max heat loss (W/m) | BL66: insulation thickness (mm) | CE66: Max heat loss (W/m) | CF66: insulation thickness (mm) | CY66: Max heat loss (W/m) | CZ66: insulation thickness (mm) | DS66: Max heat loss (W/m) | DT66: insulation thickness (mm) | EM66: Max heat loss (W/m)
D67: λ = 0.025 | E67: λ = 0.03 | F67: λ = 0.035 | G67: λ = 0.04 | H67: λ = 0.045 | I67: λ = 0.05 | J67: λ = 0.055 | K67: λ = 0.06 | L67: λ = 0.065 | M67: λ = 0.07 | N67: λ = 0.075 | O67: λ = 0.08 | P67: λ = 0.085 | Q67: λ = 0.09 | R67: λ = 0.095 | S67: λ = 0.1 | T67: λ = 0.105 | U67: λ = 0.11 | V67: λ = 0.115 | X67: λ = 0.025 | Y67: λ = 0.03 | Z67: λ = 0.035 | AA67: λ = 0.04 | AB67: λ = 0.045 | AC67: λ = 0.05 | AD67: λ = 0.055 | AE67: λ = 0.06 | AF67: λ = 0.065 | AG67: λ = 0.07 | AH67: λ = 0.075 | AI67: λ = 0.08 | AJ67: λ = 0.085 | AK67: λ = 0.09 | AL67: λ = 0.095 | AM67: λ = 0.1 | AN67: λ = 0.105 | AO67: λ = 0.11 | AP67: λ = 0.115 | AR67: λ = 0.025 | AS67: λ = 0.03 | AT67: λ = 0.035 | AU67: λ = 0.04 | AV67: λ = 0.045 | AW67: λ = 0.05 | AX67: λ = 0.055 | AY67: λ = 0.06 | AZ67: λ = 0.065 | BA67: λ = 0.07 | BB67: λ = 0.075 | BC67: λ = 0.08 | BD67: λ = 0.085 | BE67: λ = 0.09 | BF67: λ = 0.095 | BG67: λ = 0.1 | BH67: λ = 0.105 | BI67: λ = 0.11 | BJ67: λ = 0.115 | BL67: λ = 0.025 | BM67: λ = 0.03 | BN67: λ = 0.035 | BO67: λ = 0.04 | BP67: λ = 0.045 | BQ67: λ = 0.05 | BR67: λ = 0.055 | BS67: λ = 0.06 | BT67: λ = 0.065 | BU67: λ = 0.07 | BV67: λ = 0.075 | BW67: λ = 0.08 | BX67: λ = 0.085 | BY67: λ = 0.09 | BZ67: λ = 0.095 | CA67: λ = 0.1 | CB67: λ = 0.105 | CC67: λ = 0.11 | CD67: λ = 0.115 | CF67: λ = 0.025 | CG67: λ = 0.03 | CH67: λ = 0.035 | CI67: λ = 0.04 | CJ67: λ = 0.045 | CK67: λ = 0.05 | CL67: λ = 0.055 | CM67: λ = 0.06 | CN67: λ = 0.065 | CO67: λ = 0.07 | CP67: λ = 0.075 | CQ67: λ = 0.08 | CR67: λ = 0.085 | CS67: λ = 0.09 | CT67: λ = 0.095 | CU67: λ = 0.1 | CV67: λ = 0.105 | CW67: λ = 0.11 | CX67: λ = 0.115 | CZ67: λ = 0.025 | DA67: λ = 0.03 | DB67: λ = 0.035 | DC67: λ = 0.04 | DD67: λ = 0.045 | DE67: λ = 0.05 | DF67: λ = 0.055 | DG67: λ = 0.06 | DH67: λ = 0.065 | DI67: λ = 0.07 | DJ67: λ = 0.075 | DK67: λ = 0.08 | DL67: λ = 0.085 | DM67: λ = 0.09 | DN67: λ = 0.095 | DO67: λ = 0.1 | DP67: λ = 0.105 | DQ67: λ = 0.11 | DR67: λ = 0.115 | DT67: λ = 0.025 | DU67: λ = 0.03 | DV67: λ = 0.035 | DW67: λ = 0.04 | DX67: λ = 0.045 | DY67: λ = 0.05 | DZ67: λ = 0.055 | EA67: λ = 0.06 | EB67: λ = 0.065 | EC67: λ = 0.07 | ED67: λ = 0.075 | EE67: λ = 0.08 | EF67: λ = 0.085 | EG67: λ = 0.09 | EH67: λ = 0.095 | EI67: λ = 0.1 | EJ67: λ = 0.105 | EK67: λ = 0.11 | EL67: λ = 0.115
B68: 10 | C68: 17.2 | D68: 10 | E68: 14 | F68: 19 | G68: 24 | H68: 31 | I68: 40 | J68: 51 | W68: 12.79 | X68: 20 | Y68: 20 | Z68: 20 | AA68: 26 | AB68: 33 | AC68: 42 | AD68: 54 | AE68: 68 | AF68: 85 | AQ68: 28.67 | AR68: 30 | AS68: 30 | AT68: 30 | AU68: 30 | AV68: 30 | AW68: 38 | AX68: 47 | AY68: 59 | AZ68: 73 | BA68: 91 | BB68: 112 | BK68: 47.12 | BL68: 39 | BM68: 39 | BN68: 39 | BO68: 39 | BP68: 39 | BQ68: 39 | BR68: 39 | BS68: 48 | BT68: 59 | BU68: 73 | BV68: 89 | BW68: 108 | BX68: 131 | CE68: 69.08 | CF68: 46 | CG68: 46 | CH68: 46 | CI68: 46 | CJ68: 46 | CK68: 46 | CL68: 46 | CM68: 46 | CN68: 46 | CO68: 56 | CP68: 67 | CQ68: 80 | CR68: 96 | CS68: 115 | CT68: 137 | CY68: 96.08 | CZ68: 52 | DA68: 52 | DB68: 52 | DC68: 52 | DD68: 52 | DE68: 52 | DF68: 52 | DG68: 52 | DH68: 52 | DI68: 52 | DJ68: 52 | DK68: 62 | DL68: 73 | DM68: 87 | DN68: 102 | DO68: 120 | DP68: 141 | DS68: 126.93 | DT68: 56 | DU68: 56 | DV68: 56 | DW68: 56 | DX68: 56 | DY68: 56 | DZ68: 56 | EA68: 56 | EB68: 56 | EC68: 56 | ED68: 56 | EE68: 56 | EF68: 56 | EG68: 65 | EH68: 76 | EI68: 88 | EJ68: 103 | EK68: 119 | EL68: 138 | EM68: 163.63
B69: 15 | C69: 21.3 | D69: 11 | E69: 15 | F69: 20 | G69: 25 | H69: 32 | I69: 40 | J69: 51 | W69: 14.04 | X69: 22 | Y69: 22 | Z69: 22 | AA69: 28 | AB69: 36 | AC69: 46 | AD69: 57 | AE69: 71 | AF69: 88 | AQ69: 30.72 | AR69: 32 | AS69: 32 | AT69: 32 | AU69: 32 | AV69: 32 | AW69: 41 | AX69: 50 | AY69: 62 | AZ69: 76 | BA69: 93 | BB69: 114 | BK69: 50.54 | BL69: 42 | BM69: 42 | BN69: 42 | BO69: 42 | BP69: 42 | BQ69: 42 | BR69: 42 | BS69: 51 | BT69: 62 | BU69: 76 | BV69: 91 | BW69: 110 | BX69: 132 | CE69: 74.1 | CF69: 49 | CG69: 49 | CH69: 49 | CI69: 49 | CJ69: 49 | CK69: 49 | CL69: 49 | CM69: 49 | CN69: 49 | CO69: 59 | CP69: 70 | CQ69: 83 | CR69: 98 | CS69: 116 | CT69: 137 | CY69: 103 | CZ69: 56 | DA69: 56 | DB69: 56 | DC69: 56 | DD69: 56 | DE69: 56 | DF69: 56 | DG69: 56 | DH69: 56 | DI69: 56 | DJ69: 56 | DK69: 66 | DL69: 77 | DM69: 91 | DN69: 106 | DO69: 123 | DP69: 143 | DS69: 135.4 | DT69: 60 | DU69: 60 | DV69: 60 | DW69: 60 | DX69: 60 | DY69: 60 | DZ69: 60 | EA69: 60 | EB69: 60 | EC69: 60 | ED69: 60 | EE69: 60 | EF69: 60 | EG69: 69 | EH69: 80 | EI69: 92 | EJ69: 106 | EK69: 122 | EL69: 141 | EM69: 174.49
B70: 20 | C70: 26.9 | D70: 13 | E70: 17 | F70: 21 | G70: 27 | H70: 34 | I70: 42 | J70: 52 | W70: 15.42 | X70: 24 | Y70: 24 | Z70: 24 | AA70: 30 | AB70: 38 | AC70: 47 | AD70: 59 | AE70: 72 | AF70: 88 | AQ70: 33.73 | AR70: 35 | AS70: 35 | AT70: 35 | AU70: 35 | AV70: 35 | AW70: 43 | AX70: 53 | AY70: 65 | AZ70: 79 | BA70: 95 | BB70: 115 | BK70: 54.97 | BL70: 46 | BM70: 46 | BN70: 46 | BO70: 46 | BP70: 46 | BQ70: 46 | BR70: 46 | BS70: 55 | BT70: 66 | BU70: 80 | BV70: 95 | BW70: 113 | BX70: 134 | CE70: 80.06 | CF70: 54 | CG70: 54 | CH70: 54 | CI70: 54 | CJ70: 54 | CK70: 54 | CL70: 54 | CM70: 54 | CN70: 54 | CO70: 64 | CP70: 75 | CQ70: 88 | CR70: 103 | CS70: 121 | CT70: 141 | CY70: 110.72 | CZ70: 61 | DA70: 61 | DB70: 61 | DC70: 61 | DD70: 61 | DE70: 61 | DF70: 61 | DG70: 61 | DH70: 61 | DI70: 61 | DJ70: 61 | DK70: 71 | DL70: 82 | DM70: 96 | DN70: 111 | DO70: 128 | DP70: 147 | DS70: 145.58 | DT70: 65 | DU70: 65 | DV70: 65 | DW70: 65 | DX70: 65 | DY70: 65 | DZ70: 65 | EA70: 65 | EB70: 65 | EC70: 65 | ED70: 65 | EE70: 65 | EF70: 65 | EG70: 75 | EH70: 86 | EI70: 98 | EJ70: 113 | EK70: 128 | EL70: 146 | EM70: 186.89
B71: 25 | C71: 33.7 | D71: 14 | E71: 18 | F71: 23 | G71: 28 | H71: 35 | I71: 43 | J71: 52 | W71: 17.25 | X71: 26 | Y71: 26 | Z71: 26 | AA71: 32 | AB71: 40 | AC71: 49 | AD71: 60 | AE71: 73 | AF71: 88 | AQ71: 37.11 | AR71: 38 | AS71: 38 | AT71: 38 | AU71: 38 | AV71: 38 | AW71: 46 | AX71: 56 | AY71: 68 | AZ71: 81 | BA71: 97 | BB71: 116 | BK71: 59.9 | BL71: 49 | BM71: 49 | BN71: 49 | BO71: 49 | BP71: 49 | BQ71: 49 | BR71: 49 | BS71: 58 | BT71: 69 | BU71: 82 | BV71: 97 | BW71: 114 | BX71: 134 | CE71: 87.16 | CF71: 58 | CG71: 58 | CH71: 58 | CI71: 58 | CJ71: 58 | CK71: 58 | CL71: 58 | CM71: 58 | CN71: 58 | CO71: 68 | CP71: 79 | CQ71: 92 | CR71: 107 | CS71: 124 | CT71: 143 | CY71: 119.8 | CZ71: 66 | DA71: 66 | DB71: 66 | DC71: 66 | DD71: 66 | DE71: 66 | DF71: 66 | DG71: 66 | DH71: 66 | DI71: 66 | DJ71: 66 | DK71: 76 | DL71: 87 | DM71: 101 | DN71: 115 | DO71: 132 | DP71: 151 | DS71: 156.77 | DT71: 70 | DU71: 70 | DV71: 70 | DW71: 70 | DX71: 70 | DY71: 70 | DZ71: 70 | EA71: 70 | EB71: 70 | EC71: 70 | ED71: 70 | EE71: 70 | EF71: 70 | EG71: 80 | EH71: 91 | EI71: 103 | EJ71: 117 | EK71: 133 | EL71: 150 | EM71: 201.2
B72: 32 | C72: 42.4 | D72: 15 | E72: 19 | F72: 24 | G72: 30 | H72: 37 | I72: 45 | J72: 54 | W72: 19.15 | X72: 28 | Y72: 28 | Z72: 28 | AA72: 35 | AB72: 43 | AC72: 52 | AD72: 63 | AE72: 76 | AF72: 90 | AQ72: 40.76 | AR72: 41 | AS72: 41 | AT72: 41 | AU72: 41 | AV72: 41 | AW72: 49 | AX72: 59 | AY72: 71 | AZ72: 84 | BA72: 99 | BB72: 116 | BK72: 65.79 | BL72: 53 | BM72: 53 | BN72: 53 | BO72: 53 | BP72: 53 | BQ72: 53 | BR72: 53 | BS72: 62 | BT72: 73 | BU72: 86 | BV72: 101 | BW72: 117 | BX72: 136 | CE72: 95.05 | CF72: 62 | CG72: 62 | CH72: 62 | CI72: 62 | CJ72: 62 | CK72: 62 | CL72: 62 | CM72: 62 | CN72: 62 | CO72: 72 | CP72: 83 | CQ72: 96 | CR72: 110 | CS72: 127 | CT72: 145 | CY72: 130.57 | CZ72: 71 | DA72: 71 | DB72: 71 | DC72: 71 | DD72: 71 | DE72: 71 | DF72: 71 | DG72: 71 | DH72: 71 | DI72: 71 | DJ72: 71 | DK72: 81 | DL72: 92 | DM72: 105 | DN72: 120 | DO72: 136 | DP72: 155 | DS72: 170 | DT72: 76 | DU72: 76 | DV72: 76 | DW72: 76 | DX72: 76 | DY72: 76 | DZ72: 76 | EA72: 76 | EB72: 76 | EC72: 76 | ED72: 76 | EE72: 76 | EF72: 76 | EG72: 86 | EH72: 97 | EI72: 109 | EJ72: 123 | EK72: 138 | EL72: 155 | EM72: 217.29
B73: 40 | C73: 48.3 | D73: 16 | E73: 20 | F73: 25 | G73: 31 | H73: 38 | I73: 46 | J73: 54 | W73: 20.42 | X73: 29 | Y73: 29 | Z73: 29 | AA73: 36 | AB73: 44 | AC73: 53 | AD73: 64 | AE73: 76 | AF73: 90 | AQ73: 43.42 | AR73: 43 | AS73: 43 | AT73: 43 | AU73: 43 | AV73: 43 | AW73: 51 | AX73: 61 | AY73: 73 | AZ73: 86 | BA73: 101 | BB73: 118 | BK73: 69.42 | BL73: 55 | BM73: 55 | BN73: 55 | BO73: 55 | BP73: 55 | BQ73: 55 | BR73: 55 | BS73: 65 | BT73: 76 | BU73: 89 | BV73: 104 | BW73: 120 | BX73: 139 | CE73: 99.66 | CF73: 64 | CG73: 64 | CH73: 64 | CI73: 64 | CJ73: 64 | CK73: 64 | CL73: 64 | CM73: 64 | CN73: 64 | CO73: 75 | CP73: 86 | CQ73: 99 | CR73: 113 | CS73: 129 | CT73: 148 | CY73: 136.95 | CZ73: 73 | DA73: 73 | DB73: 73 | DC73: 73 | DD73: 73 | DE73: 73 | DF73: 73 | DG73: 73 | DH73: 73 | DI73: 73 | DJ73: 73 | DK73: 84 | DL73: 95 | DM73: 108 | DN73: 123 | DO73: 139 | DP73: 157 | DS73: 178.3 | DT73: 79 | DU73: 79 | DV73: 79 | DW73: 79 | DX73: 79 | DY73: 79 | DZ73: 79 | EA73: 79 | EB73: 79 | EC73: 79 | ED73: 79 | EE73: 79 | EF73: 79 | EG73: 89 | EH73: 100 | EI73: 112 | EJ73: 126 | EK73: 141 | EL73: 158 | EM73: 227.84
B74: 50 | C74: 60.3 | D74: 17 | E74: 21 | F74: 26 | G74: 32 | H74: 39 | I74: 46 | J74: 54 | W74: 23.17 | X74: 31 | Y74: 31 | Z74: 31 | AA74: 38 | AB74: 46 | AC74: 55 | AD74: 65 | AE74: 77 | AF74: 90 | AQ74: 48.44 | AR74: 46 | AS74: 46 | AT74: 46 | AU74: 46 | AV74: 46 | AW74: 54 | AX74: 64 | AY74: 76 | AZ74: 88 | BA74: 102 | BB74: 119 | BK74: 76.66 | BL74: 59 | BM74: 59 | BN74: 59 | BO74: 59 | BP74: 59 | BQ74: 59 | BR74: 59 | BS74: 68 | BT74: 79 | BU74: 92 | BV74: 106 | BW74: 121 | BX74: 139 | CE74: 109.91 | CF74: 69 | CG74: 69 | CH74: 69 | CI74: 69 | CJ74: 69 | CK74: 69 | CL74: 69 | CM74: 69 | CN74: 69 | CO74: 80 | CP74: 91 | CQ74: 104 | CR74: 118 | CS74: 134 | CT74: 151 | CY74: 149.28 | CZ74: 78 | DA74: 78 | DB74: 78 | DC74: 78 | DD74: 78 | DE74: 78 | DF74: 78 | DG74: 78 | DH74: 78 | DI74: 78 | DJ74: 78 | DK74: 89 | DL74: 101 | DM74: 113 | DN74: 127 | DO74: 143 | DP74: 160 | DS74: 194.3 | DT74: 85 | DU74: 85 | DV74: 85 | DW74: 85 | DX74: 85 | DY74: 85 | DZ74: 85 | EA74: 85 | EB74: 85 | EC74: 85 | ED74: 85 | EE74: 85 | EF74: 85 | EG74: 95 | EH74: 106 | EI74: 118 | EJ74: 132 | EK74: 147 | EL74: 163 | EM74: 247.23
B75: 65 | C75: 76.1 | D75: 18 | E75: 23 | F75: 28 | G75: 34 | H75: 41 | I75: 48 | J75: 56 | W75: 26.21 | X75: 34 | Y75: 34 | Z75: 34 | AA75: 41 | AB75: 49 | AC75: 58 | AD75: 68 | AE75: 80 | AF75: 92 | AQ75: 54.2 | AR75: 49 | AS75: 49 | AT75: 49 | AU75: 49 | AV75: 49 | AW75: 58 | AX75: 68 | AY75: 80 | AZ75: 92 | BA75: 106 | BB75: 122 | BK75: 85.08 | BL75: 63 | BM75: 63 | BN75: 63 | BO75: 63 | BP75: 63 | BQ75: 63 | BR75: 63 | BS75: 73 | BT75: 84 | BU75: 97 | BV75: 111 | BW75: 126 | BX75: 143 | CE75: 121.21 | CF75: 74 | CG75: 74 | CH75: 74 | CI75: 74 | CJ75: 74 | CK75: 74 | CL75: 74 | CM75: 74 | CN75: 74 | CO75: 85 | CP75: 96 | CQ75: 109 | CR75: 123 | CS75: 138 | CT75: 155 | CY75: 164.62 | CZ75: 84 | DA75: 84 | DB75: 84 | DC75: 84 | DD75: 84 | DE75: 84 | DF75: 84 | DG75: 84 | DH75: 84 | DI75: 84 | DJ75: 84 | DK75: 95 | DL75: 107 | DM75: 119 | DN75: 133 | DO75: 149 | DP75: 165 | DS75: 213.22 | DT75: 91 | DU75: 91 | DV75: 91 | DW75: 91 | DX75: 91 | DY75: 91 | DZ75: 91 | EA75: 91 | EB75: 91 | EC75: 91 | ED75: 91 | EE75: 91 | EF75: 91 | EG75: 102 | EH75: 113 | EI75: 125 | EJ75: 139 | EK75: 153 | EL75: 169 | EM75: 270.2
B76: 80 | C76: 88.9 | D76: 19 | E76: 24 | F76: 29 | G76: 35 | H76: 42 | I76: 49 | J76: 57 | W76: 28.73 | X76: 36 | Y76: 36 | Z76: 36 | AA76: 43 | AB76: 51 | AC76: 60 | AD76: 70 | AE76: 81 | AF76: 94 | AQ76: 58.66 | AR76: 51 | AS76: 51 | AT76: 51 | AU76: 51 | AV76: 51 | AW76: 60 | AX76: 70 | AY76: 81 | AZ76: 94 | BA76: 107 | BB76: 122 | BK76: 92.02 | BL76: 66 | BM76: 66 | BN76: 66 | BO76: 66 | BP76: 66 | BQ76: 66 | BR76: 66 | BS76: 76 | BT76: 87 | BU76: 100 | BV76: 113 | BW76: 128 | BX76: 145 | CE76: 130.15 | CF76: 77 | CG76: 77 | CH76: 77 | CI76: 77 | CJ76: 77 | CK76: 77 | CL76: 77 | CM76: 77 | CN76: 77 | CO76: 88 | CP76: 99 | CQ76: 112 | CR76: 125 | CS76: 140 | CT76: 15 | CY76: 176.67 | CZ76: 88 | DA76: 88 | DB76: 88 | DC76: 88 | DD76: 88 | DE76: 88 | DF76: 88 | DG76: 88 | DH76: 88 | DI76: 88 | DJ76: 88 | DK76: 99 | DL76: 111 | DM76: 123 | DN76: 137 | DO76: 152 | DP76: 168 | DS76: 227.69 | DT76: 95 | DU76: 95 | DV76: 95 | DW76: 95 | DX76: 95 | DY76: 95 | DZ76: 95 | EA76: 95 | EB76: 95 | EC76: 95 | ED76: 95 | EE76: 95 | EF76: 95 | EG76: 106 | EH76: 117 | EI76: 129 | EJ76: 143 | EK76: 157 | EL76: 173 | EM76: 288.43
B77: 100 | C77: 114.3 | D77: 20 | E77: 25 | F77: 30 | G77: 36 | H77: 43 | I77: 49 | J77: 57 | W77: 33.89 | X77: 38 | Y77: 38 | Z77: 38 | AA77: 46 | AB77: 54 | AC77: 63 | AD77: 73 | AE77: 84 | AF77: 96 | AQ77: 67.25 | AR77: 55 | AS77: 55 | AT77: 55 | AU77: 55 | AV77: 55 | AW77: 64 | AX77: 74 | AY77: 85 | AZ77: 97 | BA77: 110 | BB77: 125 | BK77: 104.55 | BL77: 71 | BM77: 71 | BN77: 71 | BO77: 71 | BP77: 71 | BQ77: 71 | BR77: 71 | BS77: 81 | BT77: 92 | BU77: 105 | BV77: 118 | BW77: 133 | BX77: 148 | CE77: 146.83 | CF77: 83 | CG77: 83 | CH77: 83 | CI77: 83 | CJ77: 83 | CK77: 83 | CL77: 83 | CM77: 83 | CN77: 83 | CO77: 94 | CP77: 105 | CQ77: 118 | CR77: 131 | CS77: 146 | CT77: 161 | CY77: 198.17 | CZ77: 95 | DA77: 95 | DB77: 95 | DC77: 95 | DD77: 95 | DE77: 95 | DF77: 95 | DG77: 95 | DH77: 95 | DI77: 95 | DJ77: 95 | DK77: 106 | DL77: 118 | DM77: 130 | DN77: 144 | DO77: 159 | DP77: 174 | DS77: 254.18 | DT77: 103 | DU77: 103 | DV77: 103 | DW77: 103 | DX77: 103 | DY77: 103 | DZ77: 103 | EA77: 103 | EB77: 103 | EC77: 103 | ED77: 103 | EE77: 103 | EF77: 103 | EG77: 114 | EH77: 125 | EI77: 137 | EJ77: 151 | EK77: 165 | EL77: 180 | EM77: 320.67
B78: 125 | C78: 139.7 | D78: 21 | E78: 26 | F78: 31 | G78: 37 | H78: 44 | I78: 50 | J78: 57 | W78: 38.74 | X78: 40 | Y78: 40 | Z78: 40 | AA78: 48 | AB78: 56 | AC78: 65 | AD78: 75 | AE78: 85 | AF78: 97 | AQ78: 75.74 | AR78: 58 | AS78: 58 | AT78: 58 | AU78: 58 | AV78: 58 | AW78: 67 | AX78: 77 | AY78: 88 | AZ78: 100 | BA78: 113 | BB78: 127 | BK78: 116.62 | BL78: 74 | BM78: 74 | BN78: 74 | BO78: 74 | BP78: 74 | BQ78: 74 | BR78: 74 | BS78: 84 | BT78: 95 | BU78: 107 | BV78: 120 | BW78: 134 | BX78: 149 | CE78: 163.6 | CF78: 88 | CG78: 88 | CH78: 88 | CI78: 88 | CJ78: 88 | CK78: 88 | CL78: 88 | CM78: 88 | CN78: 88 | CO78: 99 | CP78: 110 | CQ78: 123 | CR78: 136 | CS78: 150 | CT78: 166 | CY78: 218.23 | CZ78: 100 | DA78: 100 | DB78: 100 | DC78: 100 | DD78: 100 | DE78: 100 | DF78: 100 | DG78: 100 | DH78: 100 | DI78: 100 | DJ78: 100 | DK78: 111 | DL78: 123 | DM78: 135 | DN78: 149 | DO78: 163 | DP78: 178 | DS78: 279.81 | DT78: 109 | DU78: 109 | DV78: 109 | DW78: 109 | DX78: 109 | DY78: 109 | DZ78: 109 | EA78: 109 | EB78: 109 | EC78: 109 | ED78: 109 | EE78: 109 | EF78: 109 | EG78: 120 | EH78: 131 | EI78: 143 | EJ78: 157 | EK78: 170 | EL78: 185 | EM78: 351.43
B79: 150 | C79: 168.3 | D79: 22 | E79: 27 | F79: 33 | G79: 38 | H79: 44 | I79: 51 | J79: 58 | W79: 43.99 | X79: 42 | Y79: 42 | Z79: 42 | AA79: 50 | AB79: 58 | AC79: 67 | AD79: 77 | AE79: 87 | AF79: 98 | AQ79: 84.85 | AR79: 61 | AS79: 61 | AT79: 61 | AU79: 61 | AV79: 61 | AW79: 70 | AX79: 80 | AY79: 91 | AZ79: 103 | BA79: 115 | BB79: 129 | BK79: 129.46 | BL79: 78 | BM79: 78 | BN79: 78 | BO79: 78 | BP79: 78 | BQ79: 78 | BR79: 78 | BS79: 88 | BT79: 99 | BU79: 111 | BV79: 124 | BW79: 138 | BX79: 153 | CE79: 180.38 | CF79: 92 | CG79: 92 | CH79: 92 | CI79: 92 | CJ79: 92 | CK79: 92 | CL79: 92 | CM79: 92 | CN79: 92 | CO79: 103 | CP79: 114 | CQ79: 126 | CR79: 140 | CS79: 154 | CT79: 169 | CY79: 240.54 | CZ79: 106 | DA79: 106 | DB79: 106 | DC79: 106 | DD79: 106 | DE79: 106 | DF79: 106 | DG79: 106 | DH79: 106 | DI79: 106 | DJ79: 106 | DK79: 117 | DL79: 129 | DM79: 141 | DN79: 155 | DO79: 169 | DP79: 184 | DS79: 305.53 | DT79: 115 | DU79: 115 | DV79: 115 | DW79: 115 | DX79: 115 | DY79: 115 | DZ79: 115 | EA79: 115 | EB79: 115 | EC79: 115 | ED79: 115 | EE79: 115 | EF79: 115 | EG79: 126 | EH79: 137 | EI79: 149 | EJ79: 162 | EK79: 176 | EL79: 191 | EM79: 383.75
B80: 200 | C80: 219.1 | D80: 23 | E80: 28 | F80: 34 | G80: 39 | H80: 45 | I80: 52 | J80: 58 | W80: 53.38 | X80: 44 | Y80: 44 | Z80: 44 | AA80: 52 | AB80: 60 | AC80: 69 | AD80: 78 | AE80: 88 | AF80: 99 | AQ80: 101.24 | AR80: 64 | AS80: 64 | AT80: 64 | AU80: 64 | AV80: 64 | AW80: 73 | AX80: 83 | AY80: 94 | AZ80: 105 | BA80: 117 | BB80: 130 | BK80: 152.7 | BL80: 83 | BM80: 83 | BN80: 83 | BO80: 83 | BP80: 83 | BQ80: 83 | BR80: 83 | BS80: 93 | BT80: 104 | BU80: 116 | BV80: 129 | BW80: 142 | BX80: 156 | CE80: 209.59 | CF80: 98 | CG80: 98 | CH80: 98 | CI80: 98 | CJ80: 98 | CK80: 98 | CL80: 98 | CM80: 98 | CN80: 98 | CO80: 109 | CP80: 120 | CQ80: 132 | CR80: 145 | CS80: 159 | CT80: 173 | CY80: 277.77 | CZ80: 113 | DA80: 113 | DB80: 113 | DC80: 113 | DD80: 113 | DE80: 113 | DF80: 113 | DG80: 113 | DH80: 113 | DI80: 113 | DJ80: 113 | DK80: 124 | DL80: 136 | DM80: 148 | DN80: 161 | DO80: 175 | DP80: 189 | DS80: 350.96 | DT80: 123 | DU80: 123 | DV80: 123 | DW80: 123 | DX80: 123 | DY80: 123 | DZ80: 123 | EA80: 123 | EB80: 123 | EC80: 123 | ED80: 123 | EE80: 123 | EF80: 123 | EG80: 135 | EH80: 146 | EI80: 158 | EJ80: 170 | EK80: 184 | EL80: 192 | EM80: 437.18
B81: 250 | C81: 273 | D81: 24 | E81: 29 | F81: 35 | G81: 40 | H81: 46 | I81: 53 | J81: 59 | W81: 62.87 | X81: 46 | Y81: 46 | Z81: 46 | AA81: 54 | AB81: 62 | AC81: 71 | AD81: 80 | AE81: 90 | AF81: 100 | AQ81: 117.64 | AR81: 67 | AS81: 67 | AT81: 67 | AU81: 67 | AV81: 67 | AW81: 76 | AX81: 86 | AY81: 97 | AZ81: 108 | BA81: 120 | BB81: 132 | BK81: 175.73 | BL81: 87 | BM81: 87 | BN81: 87 | BO81: 87 | BP81: 87 | BQ81: 87 | BR81: 87 | BS81: 97 | BT81: 108 | BU81: 120 | BV81: 133 | BW81: 146 | BX81: 159 | CE81: 239.4 | CF81: 103 | CG81: 103 | CH81: 103 | CI81: 103 | CJ81: 103 | CK81: 103 | CL81: 103 | CM81: 103 | CN81: 103 | CO81: 114 | CP81: 125 | CQ81: 137 | CR81: 150 | CS81: 163 | CT81: 176 | CY81: 315.35 | CZ81: 123 | DA81: 123 | DB81: 123 | DC81: 123 | DD81: 123 | DE81: 123 | DF81: 123 | DG81: 123 | DH81: 123 | DI81: 123 | DJ81: 123 | DK81: 135 | DL81: 147 | DM81: 159 | DN81: 173 | DO81: 191 | DP81: 191 | DS81: 386.92 | DT81: 128 | DU81: 128 | DV81: 128 | DW81: 128 | DX81: 128 | DY81: 128 | DZ81: 128 | EA81: 128 | EB81: 128 | EC81: 128 | ED81: 128 | EE81: 128 | EF81: 128 | EG81: 139 | EH81: 154 | EI81: 166 | EJ81: 179 | EK81: 193 | EL81: 193 | EM81: 495.09

Sheet Reference (hidden)
B2: Nominal Pipe Sizes [BS:3600] | S2: Nominal Pipe Sizes [BS:3600]
B3: Nominal Pipe Size (mm) | C3: Odmax | S3: Nominal Pipe Size (mm) | T3: Odmax
B4: 8 | C4: 13.5 | S4: 8 | T4: 13.5
B5: 10 | C5: 17.2 | S5: 10 | T5: 17.2
B6: 15 | C6: 21.3 | S6: 15 | T6: 21.3
B7: 20 | C7: 26.9 | S7: 20 | T7: 26.9
B8: 25 | C8: 33.7 | S8: 25 | T8: 33.7
B9: 32 | C9: 42.4 | S9: 32 | T9: 42.4
B10: 40 | C10: 48.3 | S10: 40 | T10: 48.3
B11: 50 | C11: 60.3 | S11: 50 | T11: 60.3
B12: 65 | C12: 76.1 | S12: 65 | T12: 76.1
B13: 80 | C13: 88.9 | S13: 80 | T13: 88.9
B14: 90 | C14: 101.6 | S14: 90 | T14: 101.6
B15: 100 | C15: 114.3 | S15: 100 | T15: 114.3
B16: 125 | C16: 139.7 | S16: 125 | T16: 139.7
B17: 150 | C17: 168.3 | S17: 150 | T17: 168.3
B18: 175 | C18: 193.7 | S18: 175 | T18: 193.7
B19: 200 | C19: 219.1 | S19: 200 | T19: 219.1
B20: 222.5 | C20: 244.5 | S20: 222.5 | T20: 244.5
B21: 250 | C21: 273 | S21: 250 | T21: 273
B22: 300 | C22: 323.9 | S22: 300 | T22: 323.9
B24: Thermal Conductivity, W/mK [CIBSE Guide C, Figure 3.8] | S24: Thermal Conductivity, W/mK [CIBSE Guide C, Figure 3.8] | AJ24: Thermal Conductivity, W/mK [CIBSE Guide C, Figure 3.8]
B25: Material | C25: Flow | D25: Return | S25: Material | T25: Flow | U25: Return | AJ25: Material | AK25: Flow | AL25: Return
B26: Glass Fibre | C26: 0.04 | D26: 0.04 | S26: Glass Fibre | T26: 0.04 | U26: 0.04 | AJ26: Glass Fibre | AK26: 0.04 | AL26: 0.04
B27: Mineral Wool | C27: 0.045 | D27: 0.045 | S27: Mineral Wool | T27: 0.045 | U27: 0.045 | AJ27: Mineral Wool | AK27: 0.045 | AL27: 0.045
B28: 85% Magnesia | C28: 0.0635 | D28: 0.0635 | S28: 85% Magnesia | T28: 0.0635 | U28: 0.0635 | AJ28: 85% Magnesia | AK28: 0.0635 | AL28: 0.0635
B29: Calcium Silicate | C29: 0.064 | D29: 0.064 | F29: Re-ordered | S29: Calcium Silicate | T29: 0.064 | U29: 0.064 | W29: Re-ordered | AJ29: Calcium Silicate | AK29: 0.064 | AL29: 0.064 | AN29: Re-ordered
B30: =IF('PI Calculator'!C16<>"",'PI Calculator'!C16,"") ->  | C30: =IF('PI Calculator'!C17="",1,'PI Calculator'!C17) -> 1 | D30: =IF('PI Calculator'!C18="",1,'PI Calculator'!C18) -> 1 | F30: =IF(B30="",IF(B31<>"",B31,IF(B32<>"",B32,"")),B30) ->  | G30: =IF(C30=1,IF(C31<>1,C31,IF(C32<>1,C32,1)),C30) -> 1 | H30: =IF(D30=1,IF(D31<>1,D31,IF(D32<>1,D32,1)),D30) -> 1 | S30: =IF('Non PI Calculator'!C16<>"",'Non PI Calculator'!C16,"") ->  | T30: =IF('Non PI Calculator'!C17="",1,'Non PI Calculator'!C17) -> 1 | U30: =IF('Non PI Calculator'!C18="",1,'Non PI Calculator'!C18) -> 1 | W30: =IF(S30="",IF(S31<>"",S31,IF(S32<>"",S32,"")),S30) ->  | X30: =IF(T30=1,IF(T31<>1,T31,IF(T32<>1,T32,1)),T30) -> 1 | Y30: =IF(U30=1,IF(U31<>1,U31,IF(U32<>1,U32,1)),U30) -> 1 | AJ30: =IF('Storage Tanks'!C16<>"",'Storage Tanks'!C16,"") ->  | AK30: =IF('Storage Tanks'!C17="",1,'Storage Tanks'!C17) -> 1 | AL30: =IF('Storage Tanks'!C18="",1,'Storage Tanks'!C18) -> 1 | AN30: =IF(AJ30="",IF(AJ31<>"",AJ31,IF(AJ32<>"",AJ32,"")),AJ30) ->  | AO30: =IF(AK30=1,IF(AK31<>1,AK31,IF(AK32<>1,AK32,1)),AK30) -> 1 | AP30: =IF(AL30=1,IF(AL31<>1,AL31,IF(AL32<>1,AL32,1)),AL30) -> 1
B31: =IF('PI Calculator'!C21<>"",'PI Calculator'!C21,"") ->  | C31: =IF('PI Calculator'!C22="",1,'PI Calculator'!C22) -> 1 | D31: =IF('PI Calculator'!C23="",1,'PI Calculator'!C23) -> 1 | F31: =IF(B30<>"",IF(B31<>"",B31,IF(AND(B32<>"",F30<>B32),B32,"")),IF(AND(B32<>"",F30<>B32),B32,"")) ->  | G31: =IF(C30<>1,IF(C31<>1,C31,IF(C32<>1,C32,1)),IF(C32<>1,C32,1)) -> 1 | H31: =IF(D30<>1,IF(D31<>1,D31,IF(D32<>1,D32,1)),IF(D32<>1,D32,1)) -> 1 | S31: =IF('Non PI Calculator'!C21<>"",'Non PI Calculator'!C21,"") ->  | T31: =IF('Non PI Calculator'!C22="",1,'Non PI Calculator'!C22) -> 1 | U31: =IF('Non PI Calculator'!C23="",1,'Non PI Calculator'!C23) -> 1 | W31: =IF(S30<>"",IF(S31<>"",S31,IF(AND(S32<>"",W30<>S32),S32,"")),IF(AND(S32<>"",W30<>S32),S32,"")) ->  | X31: =IF(T30<>1,IF(T31<>1,T31,IF(T32<>1,T32,1)),IF(T32<>1,T32,1)) -> 1 | Y31: =IF(U30<>1,IF(U31<>1,U31,IF(U32<>1,U32,1)),IF(U32<>1,U32,1)) -> 1 | AJ31: =IF('Storage Tanks'!C21<>"",'Storage Tanks'!C21,"") ->  | AK31: =IF('Storage Tanks'!C22="",1,'Storage Tanks'!C22) -> 1 | AL31: =IF('Storage Tanks'!C23="",1,'Storage Tanks'!C23) -> 1 | AN31: =IF(AJ30<>"",IF(AJ31<>"",AJ31,IF(AND(AJ32<>"",AN30<>AJ32),AJ32,"")),IF(AND(AJ32<>"",AN30<>AJ32),AJ32,"")) ->  | AO31: =IF(AK30<>1,IF(AK31<>1,AK31,IF(AK32<>1,AK32,1)),IF(AK32<>1,AK32,1)) -> 1 | AP31: =IF(AL30<>1,IF(AL31<>1,AL31,IF(AL32<>1,AL32,1)),IF(AL32<>1,AL32,1)) -> 1
B32: =IF('PI Calculator'!C26<>"",'PI Calculator'!C26,"") ->  | C32: =IF('PI Calculator'!C27="",1,'PI Calculator'!C27) -> 1 | D32: =IF('PI Calculator'!C28="",1,'PI Calculator'!C28) -> 1 | F32: =IF(AND(F31<>B32,F30<>B32),B32,"") ->  | G32: =IF(F32<>"",C32,1) -> 1 | H32: =IF(F32<>"",D32,1) -> 1 | S32: =IF('Non PI Calculator'!C26<>"",'Non PI Calculator'!C26,"") ->  | T32: =IF('Non PI Calculator'!C27="",1,'Non PI Calculator'!C27) -> 1 | U32: =IF('Non PI Calculator'!C28="",1,'Non PI Calculator'!C28) -> 1 | W32: =IF(AND(W31<>S32,W30<>S32),S32,"") ->  | X32: =IF(W32<>"",T32,1) -> 1 | Y32: =IF(W32<>"",U32,1) -> 1 | AJ32: =IF('Storage Tanks'!C26<>"",'Storage Tanks'!C26,"") ->  | AK32: =IF('Storage Tanks'!C27="",1,'Storage Tanks'!C27) -> 1 | AL32: =IF('Storage Tanks'!C28="",1,'Storage Tanks'!C28) -> 1 | AN32: =IF(AND(AN31<>AJ32,AN30<>AJ32),AJ32,"") ->  | AO32: =IF(AN32<>"",AK32,1) -> 1 | AP32: =IF(AN32<>"",AL32,1) -> 1
B34: External Heat Transfer Coefficient, W/m²K [CIBSE Guide C, Table 3.25] | S34: External Heat Transfer Coefficient, W/m²K [CIBSE Guide C, Table 3.25] | AJ34: External Heat Transfer Coefficient, W/m²K [CIBSE Guide C, Table 3.25]
C35: High-e | D35: Med-e | E35: Low-e | F35: Tanks | T35: High-e | U35: Med-e | V35: Low-e | W35: Tanks | AK35: High-e | AL35: Med-e | AM35: Low-e | AN35: Tanks
B36: Sheltered | C36: 10 | D36: 8 | E36: 5.7 | F36: 16.7 | S36: Sheltered | T36: 10 | U36: 8 | V36: 5.7 | W36: 16.7 | AJ36: Sheltered | AK36: 10 | AL36: 8 | AM36: 5.7 | AN36: 16.7
B37: Exposed | C37: 20 | D37: 18 | E37: 15.5 | F37: 40 | S37: Exposed | T37: 20 | U37: 18 | V37: 15.5 | W37: 40 | AJ37: Exposed | AK37: 20 | AL37: 18 | AM37: 15.5 | AN37: 40
Z38: NON PI CALCULATOR | AQ38: STORAGE TANK CALCULATOR
B39: Fitting Heat Loss, W/K | S39: Fitting Heat Loss, W/K | AJ39: Fitting Heat Loss, W/K
B40: Insulated? | C40: Yes | D40: No | S40: Insulated? | T40: Yes | U40: No | AJ40: Insulated? | AK40: Yes | AL40: No
B41: Valve | C41: 1.5 | D41: 1.8 | H41: PI CALCULATOR | S41: Valve | T41: 1.5 | U41: 1.8 | AJ41: Valve | AK41: 1.5 | AL41: 1.8
B42: Flange | C42: 1.2 | D42: 1.35 | S42: Flange | T42: 1.2 | U42: 1.35 | AJ42: Flange | AK42: 1.2 | AL42: 1.35
B44: Monthly Air Temperature Data | S44: Monthly Air Temperature Data | AJ44: Monthly Air Temperature Data
C45: Unit | D45: Jan | E45: Feb | F45: Mar | G45: Apr | H45: May | I45: Jun | J45: Jul | K45: Aug | L45: Sep | M45: Oct | N45: Nov | O45: Dec | T45: Unit | U45: Jan | V45: Feb | W45: Mar | X45: Apr | Y45: May | Z45: Jun | AA45: Jul | AB45: Aug | AC45: Sep | AD45: Oct | AE45: Nov | AF45: Dec | AK45: Unit | AL45: Jan | AM45: Feb | AN45: Mar | AO45: Apr | AP45: May | AQ45: Jun | AR45: Jul | AS45: Aug | AT45: Sep | AU45: Oct | AV45: Nov | AW45: Dec
B46: Ambient Temperature | C46: ºC | D46: =VLOOKUP('PI Calculator'!$C$11,Reference!$B$47:$O$59,COLUMN()-1,FALSE) ->  | E46: =VLOOKUP('PI Calculator'!$C$11,Reference!$B$47:$O$59,COLUMN()-1,FALSE) ->  | F46: =VLOOKUP('PI Calculator'!$C$11,Reference!$B$47:$O$59,COLUMN()-1,FALSE) ->  | G46: =VLOOKUP('PI Calculator'!$C$11,Reference!$B$47:$O$59,COLUMN()-1,FALSE) ->  | H46: =VLOOKUP('PI Calculator'!$C$11,Reference!$B$47:$O$59,COLUMN()-1,FALSE) ->  | I46: =VLOOKUP('PI Calculator'!$C$11,Reference!$B$47:$O$59,COLUMN()-1,FALSE) ->  | J46: =VLOOKUP('PI Calculator'!$C$11,Reference!$B$47:$O$59,COLUMN()-1,FALSE) ->  | K46: =VLOOKUP('PI Calculator'!$C$11,Reference!$B$47:$O$59,COLUMN()-1,FALSE) ->  | L46: =VLOOKUP('PI Calculator'!$C$11,Reference!$B$47:$O$59,COLUMN()-1,FALSE) ->  | M46: =VLOOKUP('PI Calculator'!$C$11,Reference!$B$47:$O$59,COLUMN()-1,FALSE) ->  | N46: =VLOOKUP('PI Calculator'!$C$11,Reference!$B$47:$O$59,COLUMN()-1,FALSE) ->  | O46: =VLOOKUP('PI Calculator'!$C$11,Reference!$B$47:$O$59,COLUMN()-1,FALSE) ->  | S46: Ambient Temperature | T46: ºC | U46: =VLOOKUP('Non PI Calculator'!$C$11,Reference!$S$47:$AF$59,COLUMN()-18,FALSE) ->  | V46: =VLOOKUP('Non PI Calculator'!$C$11,Reference!$S$47:$AF$59,COLUMN()-18,FALSE) ->  | W46: =VLOOKUP('Non PI Calculator'!$C$11,Reference!$S$47:$AF$59,COLUMN()-18,FALSE) ->  | X46: =VLOOKUP('Non PI Calculator'!$C$11,Reference!$S$47:$AF$59,COLUMN()-18,FALSE) ->  | Y46: =VLOOKUP('Non PI Calculator'!$C$11,Reference!$S$47:$AF$59,COLUMN()-18,FALSE) ->  | Z46: =VLOOKUP('Non PI Calculator'!$C$11,Reference!$S$47:$AF$59,COLUMN()-18,FALSE) ->  | AA46: =VLOOKUP('Non PI Calculator'!$C$11,Reference!$S$47:$AF$59,COLUMN()-18,FALSE) ->  | AB46: =VLOOKUP('Non PI Calculator'!$C$11,Reference!$S$47:$AF$59,COLUMN()-18,FALSE) ->  | AC46: =VLOOKUP('Non PI Calculator'!$C$11,Reference!$S$47:$AF$59,COLUMN()-18,FALSE) ->  | AD46: =VLOOKUP('Non PI Calculator'!$C$11,Reference!$S$47:$AF$59,COLUMN()-18,FALSE) ->  | AE46: =VLOOKUP('Non PI Calculator'!$C$11,Reference!$S$47:$AF$59,COLUMN()-18,FALSE) ->  | AF46: =VLOOKUP('Non PI Calculator'!$C$11,Reference!$S$47:$AF$59,COLUMN()-18,FALSE) ->  | AJ46: Ambient Temperature | AK46: ºC | AL46: =VLOOKUP('Storage Tanks'!$C$11,Reference!$AJ$47:$AW$59,COLUMN()-35,FALSE) ->  | AM46: =VLOOKUP('Storage Tanks'!$C$11,Reference!$AJ$47:$AW$59,COLUMN()-35,FALSE) ->  | AN46: =VLOOKUP('Storage Tanks'!$C$11,Reference!$AJ$47:$AW$59,COLUMN()-35,FALSE) ->  | AO46: =VLOOKUP('Storage Tanks'!$C$11,Reference!$AJ$47:$AW$59,COLUMN()-35,FALSE) ->  | AP46: =VLOOKUP('Storage Tanks'!$C$11,Reference!$AJ$47:$AW$59,COLUMN()-35,FALSE) ->  | AQ46: =VLOOKUP('Storage Tanks'!$C$11,Reference!$AJ$47:$AW$59,COLUMN()-35,FALSE) ->  | AR46: =VLOOKUP('Storage Tanks'!$C$11,Reference!$AJ$47:$AW$59,COLUMN()-35,FALSE) ->  | AS46: =VLOOKUP('Storage Tanks'!$C$11,Reference!$AJ$47:$AW$59,COLUMN()-35,FALSE) ->  | AT46: =VLOOKUP('Storage Tanks'!$C$11,Reference!$AJ$47:$AW$59,COLUMN()-35,FALSE) ->  | AU46: =VLOOKUP('Storage Tanks'!$C$11,Reference!$AJ$47:$AW$59,COLUMN()-35,FALSE) ->  | AV46: =VLOOKUP('Storage Tanks'!$C$11,Reference!$AJ$47:$AW$59,COLUMN()-35,FALSE) ->  | AW46: =VLOOKUP('Storage Tanks'!$C$11,Reference!$AJ$47:$AW$59,COLUMN()-35,FALSE) -> 
B47: Belfast | C47: ºC | D47: 4.725806452 | E47: 4.057440476 | F47: 6.235887097 | G47: 6.840416667 | H47: 10.92110215 | I47: 12.53416667 | J47: 14.59959677 | K47: 14.7 | L47: 12.75597222 | M47: 9.934408602 | N47: 6.682916667 | O47: 5.736827957 | S47: Belfast | T47: ºC | U47: 4.725806452 | V47: 4.057440476 | W47: 6.235887097 | X47: 6.840416667 | Y47: 10.92110215 | Z47: 12.53416667 | AA47: 14.59959677 | AB47: 14.7 | AC47: 12.75597222 | AD47: 9.934408602 | AE47: 6.682916667 | AF47: 5.736827957 | AJ47: Belfast | AK47: ºC | AL47: 4.725806452 | AM47: 4.057440476 | AN47: 6.235887097 | AO47: 6.840416667 | AP47: 10.92110215 | AQ47: 12.53416667 | AR47: 14.59959677 | AS47: 14.7 | AT47: 12.75597222 | AU47: 9.934408602 | AV47: 6.682916667 | AW47: 5.736827957
B48: Birmingham | C48: ºC | D48: 4.928897849 | E48: 5.497470238 | F48: 6.317607527 | G48: 7.465694444 | H48: 11.61397849 | I48: 14.22916667 | J48: 17.11438172 | K48: 16.27620968 | L48: 13.15055556 | M48: 9.888306452 | N48: 6.60875 | O48: 5.194892473 | S48: Birmingham | T48: ºC | U48: 4.928897849 | V48: 5.497470238 | W48: 6.317607527 | X48: 7.465694444 | Y48: 11.61397849 | Z48: 14.22916667 | AA48: 17.11438172 | AB48: 16.27620968 | AC48: 13.15055556 | AD48: 9.888306452 | AE48: 6.60875 | AF48: 5.194892473 | AJ48: Birmingham | AK48: ºC | AL48: 4.928897849 | AM48: 5.497470238 | AN48: 6.317607527 | AO48: 7.465694444 | AP48: 11.61397849 | AQ48: 14.22916667 | AR48: 17.11438172 | AS48: 16.27620968 | AT48: 13.15055556 | AU48: 9.888306452 | AV48: 6.60875 | AW48: 5.194892473
B49: Cardiff | C49: ºC | D49: 6.202419355 | E49: 4.914583333 | F49: 6.595698925 | G49: 8.481944444 | H49: 12.18534946 | I49: 13.97097222 | J49: 16.06330645 | K49: 16.12016129 | L49: 13.85652778 | M49: 11.17446237 | N49: 8.563333333 | O49: 6.747446237 | S49: Cardiff | T49: ºC | U49: 6.202419355 | V49: 4.914583333 | W49: 6.595698925 | X49: 8.481944444 | Y49: 12.18534946 | Z49: 13.97097222 | AA49: 16.06330645 | AB49: 16.12016129 | AC49: 13.85652778 | AD49: 11.17446237 | AE49: 8.563333333 | AF49: 6.747446237 | AJ49: Cardiff | AK49: ºC | AL49: 6.202419355 | AM49: 4.914583333 | AN49: 6.595698925 | AO49: 8.481944444 | AP49: 12.18534946 | AQ49: 13.97097222 | AR49: 16.06330645 | AS49: 16.12016129 | AT49: 13.85652778 | AU49: 11.17446237 | AV49: 8.563333333 | AW49: 6.747446237
B50: Edinburgh | C50: ºC | D50: 4.036693548 | E50: 5.076785714 | F50: 6.307123656 | G50: 7.383472222 | H50: 10.08655914 | I50: 12.76736111 | J50: 14.80954301 | K50: 14.30752688 | L50: 11.74847222 | M50: 8.984274194 | N50: 5.763194444 | O50: 4.096774194 | S50: Edinburgh | T50: ºC | U50: 4.036693548 | V50: 5.076785714 | W50: 6.307123656 | X50: 7.383472222 | Y50: 10.08655914 | Z50: 12.76736111 | AA50: 14.80954301 | AB50: 14.30752688 | AC50: 11.74847222 | AD50: 8.984274194 | AE50: 5.763194444 | AF50: 4.096774194 | AJ50: Edinburgh | AK50: ºC | AL50: 4.036693548 | AM50: 5.076785714 | AN50: 6.307123656 | AO50: 7.383472222 | AP50: 10.08655914 | AQ50: 12.76736111 | AR50: 14.80954301 | AS50: 14.30752688 | AT50: 11.74847222 | AU50: 8.984274194 | AV50: 5.763194444 | AW50: 4.096774194
B51: Glasgow | C51: ºC | D51: 2.983602151 | E51: 2.93764881 | F51: 5.88077957 | G51: 6.777777778 | H51: 10.43427419 | I51: 13.12347222 | J51: 14.47715054 | K51: 14.17768817 | L51: 12.25763889 | M51: 9.120698925 | N51: 6.045694444 | O51: 5.365188172 | S51: Glasgow | T51: ºC | U51: 2.983602151 | V51: 2.93764881 | W51: 5.88077957 | X51: 6.777777778 | Y51: 10.43427419 | Z51: 13.12347222 | AA51: 14.47715054 | AB51: 14.17768817 | AC51: 12.25763889 | AD51: 9.120698925 | AE51: 6.045694444 | AF51: 5.365188172 | AJ51: Glasgow | AK51: ºC | AL51: 2.983602151 | AM51: 2.93764881 | AN51: 5.88077957 | AO51: 6.777777778 | AP51: 10.43427419 | AQ51: 13.12347222 | AR51: 14.47715054 | AS51: 14.17768817 | AT51: 12.25763889 | AU51: 9.120698925 | AV51: 6.045694444 | AW51: 5.365188172
B52: Leeds | C52: ºC | D52: 4.337634409 | E52: 5.442410714 | F52: 6.716801075 | G52: 8.73375 | H52: 11.62486559 | I52: 14.22513889 | J52: 17.42513441 | K52: 15.64314516 | L52: 13.54861111 | M52: 10.37284946 | N52: 7.229583333 | O52: 6.403091398 | S52: Leeds | T52: ºC | U52: 4.337634409 | V52: 5.442410714 | W52: 6.716801075 | X52: 8.73375 | Y52: 11.62486559 | Z52: 14.22513889 | AA52: 17.42513441 | AB52: 15.64314516 | AC52: 13.54861111 | AD52: 10.37284946 | AE52: 7.229583333 | AF52: 6.403091398 | AJ52: Leeds | AK52: ºC | AL52: 4.337634409 | AM52: 5.442410714 | AN52: 6.716801075 | AO52: 8.73375 | AP52: 11.62486559 | AQ52: 14.22513889 | AR52: 17.42513441 | AS52: 15.64314516 | AT52: 13.54861111 | AU52: 10.37284946 | AV52: 7.229583333 | AW52: 6.403091398
B53: London | C53: ºC | D53: 6.224731183 | E53: 6.287053571 | F53: 7.125672043 | G53: 9.625277778 | H53: 13.48091398 | I53: 16.01222222 | J53: 18.51155914 | K53: 17.88602151 | L53: 15.06041667 | M53: 11.83615591 | N53: 8.666388889 | O53: 6.195564516 | S53: London | T53: ºC | U53: 6.224731183 | V53: 6.287053571 | W53: 7.125672043 | X53: 9.625277778 | Y53: 13.48091398 | Z53: 16.01222222 | AA53: 18.51155914 | AB53: 17.88602151 | AC53: 15.06041667 | AD53: 11.83615591 | AE53: 8.666388889 | AF53: 6.195564516 | AJ53: London | AK53: ºC | AL53: 6.224731183 | AM53: 6.287053571 | AN53: 7.125672043 | AO53: 9.625277778 | AP53: 13.48091398 | AQ53: 16.01222222 | AR53: 18.51155914 | AS53: 17.88602151 | AT53: 15.06041667 | AU53: 11.83615591 | AV53: 8.666388889 | AW53: 6.195564516
B54: Manchester | C54: ºC | D54: 5.400806452 | E54: 5.827827381 | F54: 6.580107527 | G54: 7.99 | H54: 11.09758065 | I54: 13.98972222 | J54: 15.7422043 | K54: 16.41276882 | L54: 13.5275 | M54: 10.56733871 | N54: 6.573611111 | O54: 5.981317204 | S54: Manchester | T54: ºC | U54: 5.400806452 | V54: 5.827827381 | W54: 6.580107527 | X54: 7.99 | Y54: 11.09758065 | Z54: 13.98972222 | AA54: 15.7422043 | AB54: 16.41276882 | AC54: 13.5275 | AD54: 10.56733871 | AE54: 6.573611111 | AF54: 5.981317204 | AJ54: Manchester | AK54: ºC | AL54: 5.400806452 | AM54: 5.827827381 | AN54: 6.580107527 | AO54: 7.99 | AP54: 11.09758065 | AQ54: 13.98972222 | AR54: 15.7422043 | AS54: 16.41276882 | AT54: 13.5275 | AU54: 10.56733871 | AV54: 6.573611111 | AW54: 5.981317204
B55: Newcastle | C55: ºC | D55: 4.616666667 | E55: 5.248065476 | F55: 6.947983871 | G55: 7.241666667 | H55: 10.17862903 | I55: 13.36416667 | J55: 15.38655914 | K55: 14.83723118 | L55: 13.11125 | M55: 11.44650538 | N55: 7.0125 | O55: 5.405913978 | S55: Newcastle | T55: ºC | U55: 4.616666667 | V55: 5.248065476 | W55: 6.947983871 | X55: 7.241666667 | Y55: 10.17862903 | Z55: 13.36416667 | AA55: 15.38655914 | AB55: 14.83723118 | AC55: 13.11125 | AD55: 11.44650538 | AE55: 7.0125 | AF55: 5.405913978 | AJ55: Newcastle | AK55: ºC | AL55: 4.616666667 | AM55: 5.248065476 | AN55: 6.947983871 | AO55: 7.241666667 | AP55: 10.17862903 | AQ55: 13.36416667 | AR55: 15.38655914 | AS55: 14.83723118 | AT55: 13.11125 | AU55: 11.44650538 | AV55: 7.0125 | AW55: 5.405913978
B56: Nottingham | C56: ºC | D56: 3.979166667 | E56: 4.738839286 | F56: 6.200537634 | G56: 7.010416667 | H56: 11.7438172 | I56: 14.29194444 | J56: 16.93091398 | K56: 15.5172043 | L56: 12.95166667 | M56: 10.1141129 | N56: 6.001666667 | O56: 5.615994624 | S56: Nottingham | T56: ºC | U56: 3.979166667 | V56: 4.738839286 | W56: 6.200537634 | X56: 7.010416667 | Y56: 11.7438172 | Z56: 14.29194444 | AA56: 16.93091398 | AB56: 15.5172043 | AC56: 12.95166667 | AD56: 10.1141129 | AE56: 6.001666667 | AF56: 5.615994624 | AJ56: Nottingham | AK56: ºC | AL56: 3.979166667 | AM56: 4.738839286 | AN56: 6.200537634 | AO56: 7.010416667 | AP56: 11.7438172 | AQ56: 14.29194444 | AR56: 16.93091398 | AS56: 15.5172043 | AT56: 12.95166667 | AU56: 10.1141129 | AV56: 6.001666667 | AW56: 5.615994624
B57: Plymouth | C57: ºC | D57: 7.452822581 | E57: 6.871875 | F57: 7.034274194 | G57: 9.411805556 | H57: 12.10188172 | I57: 13.97625 | J57: 16.57741935 | K57: 15.62056452 | L57: 14.27111111 | M57: 11.78454301 | N57: 9.529722222 | O57: 8.274462366 | S57: Plymouth | T57: ºC | U57: 7.452822581 | V57: 6.871875 | W57: 7.034274194 | X57: 9.411805556 | Y57: 12.10188172 | Z57: 13.97625 | AA57: 16.57741935 | AB57: 15.62056452 | AC57: 14.27111111 | AD57: 11.78454301 | AE57: 9.529722222 | AF57: 8.274462366 | AJ57: Plymouth | AK57: ºC | AL57: 7.452822581 | AM57: 6.871875 | AN57: 7.034274194 | AO57: 9.411805556 | AP57: 12.10188172 | AQ57: 13.97625 | AR57: 16.57741935 | AS57: 15.62056452 | AT57: 14.27111111 | AU57: 11.78454301 | AV57: 9.529722222 | AW57: 8.274462366
B58: Southampton | C58: ºC | D58: 5.073252688 | E58: 6.701488095 | F58: 7.093682796 | G58: 9.252083333 | H58: 12.53508065 | I58: 15.75625 | J58: 16.85833333 | K58: 17.18521505 | L58: 14.82638889 | M58: 11.68104839 | N58: 7.984722222 | O58: 6.248790323 | S58: Southampton | T58: ºC | U58: 5.073252688 | V58: 6.701488095 | W58: 7.093682796 | X58: 9.252083333 | Y58: 12.53508065 | Z58: 15.75625 | AA58: 16.85833333 | AB58: 17.18521505 | AC58: 14.82638889 | AD58: 11.68104839 | AE58: 7.984722222 | AF58: 6.248790323 | AJ58: Southampton | AK58: ºC | AL58: 5.073252688 | AM58: 6.701488095 | AN58: 7.093682796 | AO58: 9.252083333 | AP58: 12.53508065 | AQ58: 15.75625 | AR58: 16.85833333 | AS58: 17.18521505 | AT58: 14.82638889 | AU58: 11.68104839 | AV58: 7.984722222 | AW58: 6.248790323
B59: Swindon | C59: ºC | D59: 4.545026882 | E59: 5.050595238 | F59: 5.494489247 | G59: 7.268333333 | H59: 11.86518817 | I59: 14.32569444 | J59: 16.57284946 | K59: 15.99677419 | L59: 13.36819444 | M59: 10.33548387 | N59: 6.433888889 | O59: 5.847043011 | S59: Swindon | T59: ºC | U59: 4.545026882 | V59: 5.050595238 | W59: 5.494489247 | X59: 7.268333333 | Y59: 11.86518817 | Z59: 14.32569444 | AA59: 16.57284946 | AB59: 15.99677419 | AC59: 13.36819444 | AD59: 10.33548387 | AE59: 6.433888889 | AF59: 5.847043011 | AJ59: Swindon | AK59: ºC | AL59: 4.545026882 | AM59: 5.050595238 | AN59: 5.494489247 | AO59: 7.268333333 | AP59: 11.86518817 | AQ59: 14.32569444 | AR59: 16.57284946 | AS59: 15.99677419 | AT59: 13.36819444 | AU59: 10.33548387 | AV59: 6.433888889 | AW59: 5.847043011
B61: Monthly Ground Temperature Data | S61: Monthly Ground Temperature Data
C62: Unit | D62: Jan | E62: Feb | F62: Mar | G62: Apr | H62: May | I62: Jun | J62: Jul | K62: Aug | L62: Sep | M62: Oct | N62: Nov | O62: Dec | T62: Unit | U62: Jan | V62: Feb | W62: Mar | X62: Apr | Y62: May | Z62: Jun | AA62: Jul | AB62: Aug | AC62: Sep | AD62: Oct | AE62: Nov | AF62: Dec
B63: Ambient Temperature | C63: ºC | D63: =VLOOKUP('PI Calculator'!$C$11,Reference!$B$64:$O$76,COLUMN()-1,FALSE) ->  | E63: =VLOOKUP('PI Calculator'!$C$11,Reference!$B$64:$O$76,COLUMN()-1,FALSE) ->  | F63: =VLOOKUP('PI Calculator'!$C$11,Reference!$B$64:$O$76,COLUMN()-1,FALSE) ->  | G63: =VLOOKUP('PI Calculator'!$C$11,Reference!$B$64:$O$76,COLUMN()-1,FALSE) ->  | H63: =VLOOKUP('PI Calculator'!$C$11,Reference!$B$64:$O$76,COLUMN()-1,FALSE) ->  | I63: =VLOOKUP('PI Calculator'!$C$11,Reference!$B$64:$O$76,COLUMN()-1,FALSE) ->  | J63: =VLOOKUP('PI Calculator'!$C$11,Reference!$B$64:$O$76,COLUMN()-1,FALSE) ->  | K63: =VLOOKUP('PI Calculator'!$C$11,Reference!$B$64:$O$76,COLUMN()-1,FALSE) ->  | L63: =VLOOKUP('PI Calculator'!$C$11,Reference!$B$64:$O$76,COLUMN()-1,FALSE) ->  | M63: =VLOOKUP('PI Calculator'!$C$11,Reference!$B$64:$O$76,COLUMN()-1,FALSE) ->  | N63: =VLOOKUP('PI Calculator'!$C$11,Reference!$B$64:$O$76,COLUMN()-1,FALSE) ->  | O63: =VLOOKUP('PI Calculator'!$C$11,Reference!$B$64:$O$76,COLUMN()-1,FALSE) ->  | S63: Ambient Temperature | T63: ºC | U63: =VLOOKUP('Non PI Calculator'!$C$11,Reference!$B$64:$O$76,COLUMN()-18,FALSE) ->  | V63: =VLOOKUP('Non PI Calculator'!$C$11,Reference!$B$64:$O$76,COLUMN()-18,FALSE) ->  | W63: =VLOOKUP('Non PI Calculator'!$C$11,Reference!$B$64:$O$76,COLUMN()-18,FALSE) ->  | X63: =VLOOKUP('Non PI Calculator'!$C$11,Reference!$B$64:$O$76,COLUMN()-18,FALSE) ->  | Y63: =VLOOKUP('Non PI Calculator'!$C$11,Reference!$B$64:$O$76,COLUMN()-18,FALSE) ->  | Z63: =VLOOKUP('Non PI Calculator'!$C$11,Reference!$B$64:$O$76,COLUMN()-18,FALSE) ->  | AA63: =VLOOKUP('Non PI Calculator'!$C$11,Reference!$B$64:$O$76,COLUMN()-18,FALSE) ->  | AB63: =VLOOKUP('Non PI Calculator'!$C$11,Reference!$B$64:$O$76,COLUMN()-18,FALSE) ->  | AC63: =VLOOKUP('Non PI Calculator'!$C$11,Reference!$B$64:$O$76,COLUMN()-18,FALSE) ->  | AD63: =VLOOKUP('Non PI Calculator'!$C$11,Reference!$B$64:$O$76,COLUMN()-18,FALSE) ->  | AE63: =VLOOKUP('Non PI Calculator'!$C$11,Reference!$B$64:$O$76,COLUMN()-18,FALSE) ->  | AF63: =VLOOKUP('Non PI Calculator'!$C$11,Reference!$B$64:$O$76,COLUMN()-18,FALSE) -> 
B64: Belfast | C64: ºC | D64: 6.75 | E64: 6.5 | F64: 7.5 | G64: 9.5 | H64: 13 | I64: 16 | J64: 18 | K64: 18 | L64: 16.5 | M64: 13.5 | N64: 10 | O64: 7.75 | S64: Belfast | T64: ºC | U64: 6.75 | V64: 6.5 | W64: 7.5 | X64: 9.5 | Y64: 13 | Z64: 16 | AA64: 18 | AB64: 18 | AC64: 16.5 | AD64: 13.5 | AE64: 10 | AF64: 7.75
B65: Birmingham | C65: ºC | D65: 5.75 | E65: 5.5 | F65: 6.5 | G65: 8.5 | H65: 12 | I65: 15 | J65: 17 | K65: 17 | L65: 15.5 | M65: 12.5 | N65: 9 | O65: 6.75 | S65: Birmingham | T65: ºC | U65: 5.75 | V65: 5.5 | W65: 6.5 | X65: 8.5 | Y65: 12 | Z65: 15 | AA65: 17 | AB65: 17 | AC65: 15.5 | AD65: 12.5 | AE65: 9 | AF65: 6.75
B66: Cardiff | C66: ºC | D66: 6.75 | E66: 6.5 | F66: 7.5 | G66: 9.5 | H66: 13 | I66: 16 | J66: 18 | K66: 18 | L66: 16.5 | M66: 13.5 | N66: 10 | O66: 7.75 | S66: Cardiff | T66: ºC | U66: 6.75 | V66: 6.5 | W66: 7.5 | X66: 9.5 | Y66: 13 | Z66: 16 | AA66: 18 | AB66: 18 | AC66: 16.5 | AD66: 13.5 | AE66: 10 | AF66: 7.75
B67: Edinburgh | C67: ºC | D67: 5.75 | E67: 5.5 | F67: 6.5 | G67: 8.5 | H67: 12 | I67: 15 | J67: 17 | K67: 17 | L67: 15.5 | M67: 12.5 | N67: 9 | O67: 6.75 | S67: Edinburgh | T67: ºC | U67: 5.75 | V67: 5.5 | W67: 6.5 | X67: 8.5 | Y67: 12 | Z67: 15 | AA67: 17 | AB67: 17 | AC67: 15.5 | AD67: 12.5 | AE67: 9 | AF67: 6.75
B68: Glasgow | C68: ºC | D68: 5.75 | E68: 5.5 | F68: 6.5 | G68: 8.5 | H68: 12 | I68: 15 | J68: 17 | K68: 17 | L68: 15.5 | M68: 12.5 | N68: 9 | O68: 6.75 | S68: Glasgow | T68: ºC | U68: 5.75 | V68: 5.5 | W68: 6.5 | X68: 8.5 | Y68: 12 | Z68: 15 | AA68: 17 | AB68: 17 | AC68: 15.5 | AD68: 12.5 | AE68: 9 | AF68: 6.75
B69: Leeds | C69: ºC | D69: 5.75 | E69: 5.5 | F69: 6.5 | G69: 8.5 | H69: 12 | I69: 15 | J69: 17 | K69: 17 | L69: 15.5 | M69: 12.5 | N69: 9 | O69: 6.75 | S69: Leeds | T69: ºC | U69: 5.75 | V69: 5.5 | W69: 6.5 | X69: 8.5 | Y69: 12 | Z69: 15 | AA69: 17 | AB69: 17 | AC69: 15.5 | AD69: 12.5 | AE69: 9 | AF69: 6.75
B70: London | C70: ºC | D70: 7.75 | E70: 7.5 | F70: 8.5 | G70: 10.5 | H70: 14 | I70: 17 | J70: 19 | K70: 19 | L70: 17.5 | M70: 14.5 | N70: 11 | O70: 8.75 | S70: London | T70: ºC | U70: 7.75 | V70: 7.5 | W70: 8.5 | X70: 10.5 | Y70: 14 | Z70: 17 | AA70: 19 | AB70: 19 | AC70: 17.5 | AD70: 14.5 | AE70: 11 | AF70: 8.75
B71: Manchester | C71: ºC | D71: 6.75 | E71: 6.5 | F71: 7.5 | G71: 9.5 | H71: 13 | I71: 16 | J71: 18 | K71: 18 | L71: 16.5 | M71: 13.5 | N71: 10 | O71: 7.75 | S71: Manchester | T71: ºC | U71: 6.75 | V71: 6.5 | W71: 7.5 | X71: 9.5 | Y71: 13 | Z71: 16 | AA71: 18 | AB71: 18 | AC71: 16.5 | AD71: 13.5 | AE71: 10 | AF71: 7.75
B72: Newcastle | C72: ºC | D72: 4.75 | E72: 4.5 | F72: 5.5 | G72: 7.5 | H72: 11 | I72: 14 | J72: 16 | K72: 16 | L72: 14.5 | M72: 11.5 | N72: 8 | O72: 5.75 | S72: Newcastle | T72: ºC | U72: 4.75 | V72: 4.5 | W72: 5.5 | X72: 7.5 | Y72: 11 | Z72: 14 | AA72: 16 | AB72: 16 | AC72: 14.5 | AD72: 11.5 | AE72: 8 | AF72: 5.75
B73: Nottingham | C73: ºC | D73: 6.75 | E73: 6.5 | F73: 7.5 | G73: 9.5 | H73: 13 | I73: 16 | J73: 18 | K73: 18 | L73: 16.5 | M73: 13.5 | N73: 10 | O73: 7.75 | S73: Nottingham | T73: ºC | U73: 6.75 | V73: 6.5 | W73: 7.5 | X73: 9.5 | Y73: 13 | Z73: 16 | AA73: 18 | AB73: 18 | AC73: 16.5 | AD73: 13.5 | AE73: 10 | AF73: 7.75
B74: Plymouth | C74: ºC | D74: 8.75 | E74: 8.5 | F74: 9.5 | G74: 11.5 | H74: 15 | I74: 18 | J74: 20 | K74: 20 | L74: 18.5 | M74: 15.5 | N74: 12 | O74: 9.75 | S74: Plymouth | T74: ºC | U74: 8.75 | V74: 8.5 | W74: 9.5 | X74: 11.5 | Y74: 15 | Z74: 18 | AA74: 20 | AB74: 20 | AC74: 18.5 | AD74: 15.5 | AE74: 12 | AF74: 9.75
B75: Southampton | C75: ºC | D75: 8.75 | E75: 8.5 | F75: 9.5 | G75: 11.5 | H75: 15 | I75: 18 | J75: 20 | K75: 20 | L75: 18.5 | M75: 15.5 | N75: 12 | O75: 9.75 | S75: Southampton | T75: ºC | U75: 8.75 | V75: 8.5 | W75: 9.5 | X75: 11.5 | Y75: 15 | Z75: 18 | AA75: 20 | AB75: 20 | AC75: 18.5 | AD75: 15.5 | AE75: 12 | AF75: 9.75
B76: Swindon | C76: ºC | D76: 8.75 | E76: 8.5 | F76: 9.5 | G76: 11.5 | H76: 15 | I76: 18 | J76: 20 | K76: 20 | L76: 18.5 | M76: 15.5 | N76: 12 | O76: 9.75 | S76: Swindon | T76: ºC | U76: 8.75 | V76: 8.5 | W76: 9.5 | X76: 11.5 | Y76: 15 | Z76: 18 | AA76: 20 | AB76: 20 | AC76: 18.5 | AD76: 15.5 | AE76: 12 | AF76: 9.75

Sheet Non PI Calculator
B2: Before filling in this sheet, please read the
B3: HLC Guide
B5: Renewable Heat Incentive
B6: Calculation of Heat Losses from all 'Non-Properly Insulated' pipe lengths.
E8: Belfast
E9: Birmingham
E10: Cardiff
B11: Location: | E11: Edinburgh
E12: Glasgow
E13: Leeds
E14: London
B15: User Defined Insulation 1 | E15: Manchester
B16: Name: | E16: Newcastle
B17: Conductivity (Flow): | D17: W/mK | E17: Nottingham
B18: Conductivity (Return): | D18: W/mK | E18: Plymouth
E19: Southampton
B20: User Defined Insulation 2 | E20: Manchester
B21: Name: | E21: Newcastle
B22: Conductivity (Flow): | D22: W/mK | E22: Nottingham
B23: Conductivity (Return): | D23: W/mK | E23: Plymouth
E24: Southampton
B25: User Defined Insulation 3
B26: Name:
B27: Conductivity (Flow): | D27: W/mK
B28: Conductivity (Return): | D28: W/mK
B30: Use these buttons to add
B31: and delete a column for each | C31: column count start with col E | D31: =COUNTA(E89:E89) -> 1
B32: external pipe run.
B33: Projected Annual Generation | C33: kWh
B35: Distribution System Details
B36: Pipe Sections | C36: Units | D36: Total
B37: Section Name | C37: - | D37: - | E37: Example
B38: Flow or Return? | C38: - | D38: - | E38: Flow
B39: Length | C39: m | D39: =SUMIF(OFFSET(E39,0,1,1,$D$31),"<>#n/a",OFFSET(E39,0,1,1,$D$31)) -> 0 | E39: 1000
B40: Is the pipe length pre-insulated or buried? (If yes please complete Row 54 below) | C40: - | D40: - | E40: No
B41: Not Pre-insulated
B42: Nominal Diameter | C42: mm | D42: - | E42: 40
B43: Outside Diameter | C43: mm | D43: - | E43: -
B44: Insulation Type (select only for temperatures < 95oC) | C44: - | D44: - | E44: 85% Magnesia
B45: Insulation Thickness | C45: mm | D45: - | E45: 25
B46: User defined insulation thickness | C46: mm | D46: - | E46: -
B47: Surface Emissivity | C47: - | D47: - | E47: Medium
B48: External Condition | C48: - | D48: - | E48: Exposed
B49: No. Valves | C49: - | D49: =SUMIF(OFFSET(E49,0,1,1,$D$31),"<>#n/a",OFFSET(E49,0,1,1,$D$31)) -> 0 | E49: 1
B50: Valves Insulated? | C50: - | D50: - | E50: No
B51: No. Flanges | C51: - | D51: =SUMIF(OFFSET(E51,0,1,1,$D$31),"<>#n/a",OFFSET(E51,0,1,1,$D$31)) -> 0 | E51: 1
B52: Flanges Insulated? | C52: - | D52: - | E52: No
B53: Pre-insulated or buried
B54: Heat Loss Rate for total cross-section of pipe | C54: W/mK | D54: - | E54: -
B55: Based on ground or air temperature? | E55: -
E56: TRUE
B57: Fluid Temperature | D57: Outside Dia: | E57: =IF(E42<>"User Defined o.d.",VLOOKUP(E42,Reference!$B$4:$C$22,2,FALSE),'Non PI Calculator'!E43) -> 48.3
B58: Month | C58: Units | D58: Total
B59: January | C59: ºC | D59: - | E59: 80
B60: February | C60: ºC | D60: - | E60: 80
B61: March | C61: ºC | D61: - | E61: 80
B62: April | C62: ºC | D62: - | E62: 80
B63: May | C63: ºC | D63: - | E63: 80
B64: June | C64: ºC | D64: - | E64: 80
B65: July | C65: ºC | D65: - | E65: 80
B66: August | C66: ºC | D66: - | E66: 80
B67: September | C67: ºC | D67: - | E67: 80
B68: October | C68: ºC | D68: - | E68: 80
B69: November | C69: ºC | D69: - | E69: 80
B70: December | C70: ºC | D70: - | E70: 80
B72: Operating Hours
B73: Month | C73: Units | D73: Total
B74: January | C74: hrs | D74: - | E74: 600
B75: February | C75: hrs | D75: - | E75: 550
B76: March | C76: hrs | D76: - | E76: 500
B77: April | C77: hrs | D77: - | E77: 450
B78: May | C78: hrs | D78: - | E78: 400
B79: June | C79: hrs | D79: - | E79: 350
B80: July | C80: hrs | D80: - | E80: 350
B81: August | C81: hrs | D81: - | E81: 400
B82: September | C82: hrs | D82: - | E82: 450
B83: October | C83: hrs | D83: - | E83: 500
B84: November | C84: hrs | D84: - | E84: 550
B85: December | C85: hrs | D85: - | E85: 600
B87: Heat Loss Rates (W/K)
B88: Pipe Sections | C88: Units | D88: Total
B89: Pipe | C89: W/K | D89: =SUMIF(OFFSET(E89,0,1,1,$D$31),"<>#n/a",OFFSET(E89,0,1,1,$D$31)) -> 0 | E89: =IF(E$40="Yes",E$54*E$39,E39*PI()*(E57/1000)*(1/(((E57/1000)/(2*OFFSET(Reference!$S$25,MATCH(E44,Reference!$S$26:$S$31,0),MATCH(E38,Reference!$T$25:$U$25,0)))*LN((E57+(2*IF(E45="User Defined",E46,E45) ))/E57))+(E57/(VLOOKUP(E48,Reference!$S$36:$V$37,IF(E47="High",2,IF(E47="Low",4,3)),FALSE)*(E57+(2*IF(E45="User Defined",E46,E45)))))))) -> 509.9673812
B90: Valves | C90: W/K | D90: =SUMIF(OFFSET(E90,0,1,1,$D$31),"<>#n/a",OFFSET(E90,0,1,1,$D$31)) -> 0 | E90: =IF(E40="No",IF(E49>0,E49*IF(E50="Yes",0,5*(E57/1000)*PI()*(E57/1000)*VLOOKUP(E48,Reference!$B$36:$E$37,IF(E47="High",2,IF(E47="Low",4,3)),FALSE)),0),0) -> 0.6596091077
B91: Flanges | C91: W/K | D91: =SUMIF(OFFSET(E91,0,1,1,$D$31),"<>#n/a",OFFSET(E91,0,1,1,$D$31)) -> 0 | E91: =IF(E40="No",IF(E51>0,E51*IF(E52="Yes",0,1.5*(E57/1000)*PI()*(E57/1000)*VLOOKUP(E48,Reference!$B$36:$E$37,IF(E47="High",2,IF(E47="Low",4,3)),FALSE)),0),0) -> 0.1978827323
B93: Monthly Heat Losses
B94: Month | C94: Units | D94: Total
B95: January | C95: kWh | D95: =SUMIF(OFFSET(E95,0,1,1,$D$31),"<>#n/a",OFFSET(E95,0,1,1,$D$31)) -> 0 | E95: =IF(E$55="Ground",SUM(E$89:E$91)*(E59-Reference!$U$63)*E74*0.001,SUM(E$89:E$91)*(E59-Reference!$U$46)*E74*0.001) -> 
B96: February | C96: kWh | D96: 0 | E96: =IF(E$55="Ground",SUM(E$89:E$91)*(E60-Reference!$V$63)*E75*0.001,SUM(E$89:E$91)*(E60-Reference!$V$46)*E75*0.001) -> 
B97: March | C97: kWh | D97: 0 | E97: =IF(E$55="Ground",SUM(E$89:E$91)*(E61-Reference!$W$63)*E76*0.001,SUM(E$89:E$91)*(E61-Reference!$W$46)*E76*0.001) -> 
B98: April | C98: kWh | D98: 0 | E98: =IF(E$55="Ground",SUM(E$89:E$91)*(E62-Reference!$X$63)*E77*0.001,SUM(E$89:E$91)*(E62-Reference!$X$46)*E77*0.001) -> 
B99: May | C99: kWh | D99: 0 | E99: =IF(E$55="Ground",SUM(E$89:E$91)*(E63-Reference!$Y$63)*E78*0.001,SUM(E$89:E$91)*(E63-Reference!$Y$46)*E78*0.001) -> 
B100: June | C100: kWh | D100: 0 | E100: =IF(E$55="Ground",SUM(E$89:E$91)*(E64-Reference!$Z$63)*E79*0.001,SUM(E$89:E$91)*(E64-Reference!$Z$46)*E79*0.001) -> 
B101: July | C101: kWh | D101: 0 | E101: =IF(E$55="Ground",SUM(E$89:E$91)*(E65-Reference!$AA$63)*E80*0.001,SUM(E$89:E$91)*(E65-Reference!$AA$46)*E80*0.001) -> 
B102: August | C102: kWh | D102: 0 | E102: =IF(E$55="Ground",SUM(E$89:E$91)*(E66-Reference!$AB$63)*E81*0.001,SUM(E$89:E$91)*(E66-Reference!$AB$46)*E81*0.001) -> 
B103: September | C103: kWh | D103: 0 | E103: =IF(E$55="Ground",SUM(E$89:E$91)*(E67-Reference!$AC$63)*E82*0.001,SUM(E$89:E$91)*(E67-Reference!$AC$46)*E82*0.001) -> 
B104: October | C104: kWh | D104: 0 | E104: =IF(E$55="Ground",SUM(E$89:E$91)*(E68-Reference!$AD$63)*E83*0.001,SUM(E$89:E$91)*(E68-Reference!$AD$46)*E83*0.001) -> 
B105: November | C105: kWh | D105: 0 | E105: =IF(E$55="Ground",SUM(E$89:E$91)*(E69-Reference!$AE$63)*E84*0.001,SUM(E$89:E$91)*(E69-Reference!$AE$46)*E84*0.001) -> 
B106: December | C106: kWh | D106: =SUMIF(OFFSET(E106,0,1,1,$D$31),"<>#n/a",OFFSET(E106,0,1,1,$D$31)) -> 0 | E106: =IF(E$55="Ground",SUM(E$89:E$91)*(E70-Reference!$AF$63)*E85*0.001,SUM(E$89:E$91)*(E70-Reference!$AF$46)*E85*0.001) -> 
B108: Quaterly Heat Losses
B109: Period | C109: Units | D109: Total
B110: January - March | C110: kWh | D110: =SUM(D95:D97) -> 0
B111: April - June | C111: kWh | D111: =SUM(D98:D100) -> 0
B112: July - September | C112: KWh | D112: =SUM(D101:D103) -> 0
B113: October - December | C113: kWh | D113: =SUM(D104:D106) -> 0
B115: Annual Heat Loss | C115: kWh | D115: =SUM(D95:D106) -> 0
B120: Flow
B121: Return
B122: DUO
B123: Exposed
B124: Buried
B126: Yes
B127: No
B129: =Reference!S26 -> Glass Fibre
B130: =Reference!S27 -> Mineral Wool
B131: =Reference!S28 -> 85% Magnesia
B132: =Reference!S29 -> Calcium Silicate
B133: =Reference!S30 -> 
B134: =Reference!S31 -> 
B135: =Reference!S32 -> 
B136: =Reference!S36 -> Sheltered
B137: =Reference!S37 -> Exposed
B138: =Reference!S32 -> 
B140: High
B141: Medium
B142: Low
B144: User Defined
B145: 12.5
B146: 19
B147: 25
B148: 38
B149: 50
B150: 75
B151: 100
B153: User Defined o.d.
B154: =Reference!S4 -> 8
B155: =Reference!S5 -> 10
B156: =Reference!S6 -> 15
B157: =Reference!S7 -> 20
B158: =Reference!S8 -> 25
B159: =Reference!S9 -> 32
B160: =Reference!S10 -> 40
B161: =Reference!S11 -> 50
B162: =Reference!S12 -> 65
B163: =Reference!S13 -> 80
B164: =Reference!S14 -> 90
B165: =Reference!S15 -> 100
B166: =Reference!S16 -> 125
B167: =Reference!S17 -> 150
B168: =Reference!S18 -> 175
B169: =Reference!S19 -> 200
B170: =Reference!S20 -> 222.5
B171: =Reference!S21 -> 250
B172: =Reference!S22 -> 300
B174: Ground
B175: Air
B178: Delete

Sheet Storage Tanks
B2: Before filling in this sheet, please read the
B3: HLC Guide
B5: Renewable Heat Incentive
B6: Calculation of Heat Losses from External Storage Tanks.
E7: Belfast
E8: Birmingham
E9: Cardiff
E10: Edinburgh
B11: Location: | E11: Glasgow
E12: Leeds
E13: London
E14: Manchester
B15: User Defined Insulation 1 | E15: Newcastle
B16: Name: | E16: Nottingham
B17: Conductivity: | D17: W/mK | E17: Plymouth
E18: Southampton
B20: User Defined Insulation 2
B21: Name:
B22: Conductivity: | D22: W/mK
B25: User Defined Insulation 3
B26: Name:
B27: Conductivity: | D27: W/mK
B30: Use these buttons to add
B31: and delete a storage tank.
D32: =COUNTA(E76:E76) -> 1
B33: Storage Tank Details
B34: Tank Dimensions | C34: Units | D34: Total
B35: Is the tank cylindrical? | C35: - | D35: - | E35: Yes
B36: Height | C36: m | D36: - | E36: 1.8
B37: Internal Diameter | C37: m | D37: - | E37: 0.5
B38: Internal Surface Area | C38: m² | D38: - | E38: -
B39: Insulation Properties
B40: Insulation Type | C40: - | D40: - | E40: 85% Magnesia
B41: Insulation Thickness | C41: mm | D41: - | E41: 12.5
B42: User defined insulation thickness | C42: mm | D42: - | E42: -
B43: External Condition | C43: - | D43: - | E43: Sheltered
B45: Fluid Temperature
B46: Month | C46: Units | D46: Total
B47: January | C47: ºC | D47: - | E47: 80
B48: February | C48: ºC | D48: - | E48: 80
B49: March | C49: ºC | D49: - | E49: 80
B50: April | C50: ºC | D50: - | E50: 80
B51: May | C51: ºC | D51: - | E51: 80
B52: June | C52: ºC | D52: - | E52: 80
B53: July | C53: ºC | D53: - | E53: 80
B54: August | C54: ºC | D54: - | E54: 80
B55: September | C55: ºC | D55: - | E55: 80
B56: October | C56: ºC | D56: - | E56: 80
B57: November | C57: ºC | D57: - | E57: 80
B58: December | C58: ºC | D58: - | E58: 80
B60: Operating Hours
B61: Month | C61: Units | D61: Total
B62: January | C62: hrs | D62: - | E62: 600
B63: February | C63: hrs | D63: - | E63: 550
B64: March | C64: hrs | D64: - | E64: 500
B65: April | C65: hrs | D65: - | E65: 450
B66: May | C66: hrs | D66: - | E66: 400
B67: June | C67: hrs | D67: - | E67: 350
B68: July | C68: hrs | D68: - | E68: 350
B69: August | C69: hrs | D69: - | E69: 400
B70: September | C70: hrs | D70: - | E70: 450
B71: October | C71: hrs | D71: - | E71: 500
B72: November | C72: hrs | D72: - | E72: 550
B73: December | C73: hrs | D73: - | E73: 600
B75: Heat Loss Rates (W/K)
B76: Tanks | C76: W/K | D76: =SUMIF(OFFSET(E76,0,1,1,$D$32),"<>#n/a",OFFSET(E76,0,1,1,$D$32)) -> 0 | E76: =IF(E35="Yes",E108+E109,E110) -> 12.87947916
B78: Monthly Heat Losses
B79: Month | C79: Units | D79: Total
B80: January | C80: kWh | D80: =SUMIF(OFFSET(E80,0,1,1,$D$32),"<>#n/a",OFFSET(E80,0,1,1,$D$32)) -> 0 | E80: =E$76*(E47-Reference!$AL$46)*E62*0.001 -> 
B81: February | C81: kWh | D81: =SUMIF(OFFSET(E81,0,1,1,$D$32),"<>#n/a",OFFSET(E81,0,1,1,$D$32)) -> 0 | E81: =E$76*(E48-Reference!$AM$46)*E63*0.001 -> 
B82: March | C82: kWh | D82: 0 | E82: =E$76*(E49-Reference!$AN$46)*E64*0.001 -> 
B83: April | C83: kWh | D83: 0 | E83: =E$76*(E50-Reference!$AO$46)*E65*0.001 -> 
B84: May | C84: kWh | D84: 0 | E84: =E$76*(E51-Reference!$AP$46)*E66*0.001 -> 
B85: June | C85: kWh | D85: 0 | E85: =E$76*(E52-Reference!AQ$46)*E67*0.001 -> 
B86: July | C86: kWh | D86: 0 | E86: =E$76*(E53-Reference!$AR$46)*E68*0.001 -> 
B87: August | C87: kWh | D87: 0 | E87: =E$76*(E54-Reference!$AS$46)*E69*0.001 -> 
B88: September | C88: kWh | D88: 0 | E88: =E$76*(E55-Reference!$AT$46)*E70*0.001 -> 
B89: October | C89: kWh | D89: 0 | E89: =E$76*(E56-Reference!$AU$46)*E71*0.001 -> 
B90: November | C90: kWh | D90: 0 | E90: =E$76*(E57-Reference!$AV$46)*E72*0.001 -> 
B91: December | C91: kWh | D91: 0 | E91: =E$76*(E58-Reference!$AW$46)*E73*0.001 -> 
B93: Quaterly Heat Losses
B94: Period | C94: Units | D94: Total
B95: January - March | C95: kWh | D95: =SUM(D80:D82) -> 0
B96: April - June | C96: kWh | D96: =SUM(D83:D85) -> 0
B97: July - September | C97: KWh | D97: =SUM(D86:D88) -> 0
B98: October - December | C98: kWh | D98: =SUM(D89:D91) -> 0
B100: Annual Heat Loss | C100: kWh | D100: =SUM(D80:D91) -> 0
E102: =E36*PI()*E37 -> 2.827433388
E103: =(2*PI()*(E37/2)^2) -> 0.3926990817
E104: =IF(E41=$B$129,E42,E41) -> 12.5
B105: Flow | E105: =OFFSET(Reference!$AJ$25,MATCH(E40,Reference!$AJ$26:$AJ$32,0),1) -> 0.0635
B106: Return | E106: =VLOOKUP(E43,Reference!$AJ$36:$AN$37,5,FALSE) -> 16.7
B107: DUO | E107: =(E37)/(2*E105)*LN((E37+(2*E104*0.001))/E37) -> 0.1920872605
B108: Exposed | E108: =E103*(1/((1/E106)+(E104*0.001/E105))) -> 1.529615211
B109: Buried | E109: =(PI()*E36*E37)/(E107+(E37)/(E106*(E37+(2*E104*0.001)))) -> 11.34986395
E110: =E38*(1/((1/E106)+(E104*0.001/E105))) -> 
B111: Yes
B112: No
B114: Glass Fibre
B115: Mineral Wool
B116: 85% Magnesia
B117: Calcium Silicate
B118: =Reference!AN30 -> 
B119: =Reference!AN31 -> 
B120: =Reference!AN32 -> 
B122: Sheltered
B123: Exposed
B125: High
B126: Medium
B127: Low
B129: User Defined
B130: 12.5
B131: 19
B132: 25
B133: 38
B134: 50
B135: 75
B136: 100
B138: Ground
B139: Air
B142: Delete

Sheet Results
B3: Results of heat loss calculation for 'properly insulated' pipe lengths >10m
B11: 1 | D11: AUTOMATIC CALCULATION. Total calculated average annual heat loss from all individual 'properly insulated' pipe lengths >10m (kWhth). | E11: ='PI Calculator'!D115 -> 0 | F11: Automatically populated upon completion of the "PI Calculator".
B12: 2 | D12: Projected annual heat output from the plant (kWhth) | E12: ='PI Calculator'!D33 -> 0 | F12: Automatically populated upon completion of the "PI Calculator".
B13: 3 | D13: AUTOMATIC CALCULATION. The calculated % of average annual heat loss from all individual 'properly insulated' pipe lengths >10m compared with the plant's projected annual heat output (kWhth): | E13: =IFERROR(E11/E12,0) -> 0 | F13: =IF(E13<0.03,"As the figure calculated is <3% these losses will be disregarded.","As the figure calculated is >3% you should note that these losses will be deducted from periodic support payments.") -> As the figure calculated is <3% these losses will be disregarded.
B48: Heat Loss Assessment Results
B50: a | D50: Average annual heat lost from 'Non Properly Insulated' pipe lengths (kWhth) and external storage tanks | E50: =SUM('Non PI Calculator'!D115,'Storage Tanks'!D100) -> 0 | F50: For Example: '6058'. NB - Do NOT type 'kWhth' after the number.
B51: b | D51: Average annual heat loss from 'Properly Insulated' pipe lengths >10m (kWth) | E51: =IF(E13<=0.03,"",'PI Calculator'!D115) ->  | F51: For Example: '112603'. NB - Do NOT type 'kWhth' after the number.
B52: c | D52: Projected annual heat output (kWhth) | E52: ='Non PI Calculator'!D33 -> 0
B53: d | D53: Total average annual heat loss from all 'Non Properly Insulated' pipe lengths, 'Properly Insulated' pipe lengths >10m (kWth) and external storage tanks. | E53: =SUM(E50,E51) -> 0
B54: e | D54: AUTOMATIC CALCULATION. The calculated % of average annual heat loss from the Heat Loss Calculator for 'Non Properly Insulated' pipework compared with the plant's projected annual heat output (kWhth) | E54: =IF(AND(E50<>0,E52<>0),E50/E52,0) -> 0 | F54: This will automatically calcuate the percentage. If the figure calculated is >6% it will need an internal assessment by Ofgem.
B55: f | D55: Heat loss calculation | E55: =IF(AND(E50<>0,E52<>0),IF(E54<0.06,"Approved","Heat loss case needs an internal assessment"),"") -> 
B56: g | D56: AUTOMATIC CALCULATION. Quarterly heat loss figure (QHLF) (kWhth) | E56: =E53/4 -> 0 | F56: Enter this figure into Question HH123-3 of the IT Register.

Sheet HLC Guide
B3: Quick User Guide
B5: The following colour-coding indicates the type of data field: | E5: Required = | H5: Complete = | K5: Optional =
B7: Step 1: Description
B8: Details of the installation should be entered in the 'Description' worksheet. The 'Location' should be selected from the available regions using the drop down list.
B9: Optionally, a 'User Defined Insulation' maybe specified. This requires a 'Name' and conductivities associated with both flow and return temperatures.
B11: Step 2: Calculator
B12: The annual pipework heat loss is displayed at the bottom of the 'Calculator' worksheet.
B13: To add a pipe section, click the 'Add' button to automatically create another column.
B14: To remove a pipe section, select the column, right-click and select the 'Delete' menu item.
B15: Please note that the 'Nominal Diameter' drop down list values are for steel pipe taken from BS:3600.
B16: To enter pipe sizes or pipe types described by other standards please use the 'Outside Diameter' field.
B17: For buried or plastic pipe sections, the 'Outside Diameter' and the 'External Heat Loss Rate' must be specified.
B19: The following parameters are required:
B21: Flow or Return? | C21: - Identify whether this pipe section is part of the flow or return pipework.
B22: Length | C22: - Enter the length of the pipe section (m).
B23: Nominal Diameter | C23: - Select either the nominal diameter (mm) or 'User Defined o.d.' to enter the measured outside diameter (mm).
B24: Outside Diameter | C24: - When applicable, enter the measured outside diameter (mm).
B25: Insulation Type | C25: - Select the insulation type. If a 'User Defined Insulation' has been defined it will be available on the drop down list.
B26: Insulation Thickness | C26: - Select the insulation thickness (mm).
B27: Surface Emissivity | C27: - Select the insulation surface emissivity.
B28: External Condition | C28: - Select the external condition adjacent to the pipe section.
B29: Buried Pipework? | C29: - Identify whether the pipe section is buried.
B30: Ext. Heat Loss Rate | C30: - When buried or plastic pipe section, provide the external heat loss rate (W/mK).
B31: No. Valves | C31: - Enter the number of valves.
B32: Valves Insulated? | C32: - Identify if the valves are insulated.
B33: No. Flanges | C33: - Enter the number of flanges.
B34: Flanges Insulated? | C34: - Identify if the flanges are insulated.
B35: Fluid Temperature | C35: - Monthly fluid temperature.
B36: Operating Hours | C36: - Monthly hours of operation.
B38: The heat loss calculation is taken from CIBSE Guide C (eqa. 3.111), where the heat exchange per metre length is:
B44: The thermal resistance of insulation is (eqa. 3.113) is:
B49: The full list of parameters include:
B51: don = outside diameter of insulation (m)
B52: dop = outside diameter of pipe (m)
B53: hso = outside surface heat transfer coefficient (W.m-2.K-1)
B54: kn = thermal conductivity of insulation (W.m-1.K-1)
B55: Rn = thermal resistance of insulation (m2.K.W-1)
B56: ta = air temperature (ºC)
B57: ts = surface temperature (ºC)
